{"text_format":"3","workbook":"xlsx","n_sheets":7,"sheets":["Total # of Words","Number Different Words","% Different Words","Number of New Words","% of New Words","Total Tiered Vocab Count","% Tiered Vocab Count "],"not_rendered":{"charts":9,"defined_names":12},"read":"whole","date_system":"1900"}

{"sheet":"Total # of Words","index":0,"n_rows":242,"n_cols":9,"rows_kept":242,"merged":[[0,0,0,4],[1,0,1,4],[2,0,2,4],[2,6,2,8],[3,1,3,4],[3,6,3,8],[5,0,5,4],[7,6,7,8],[8,6,11,8]]}
["Total Number of Words"]
["This information can be obtained by entering a transcript of students' narratives into https://wordcounttools.com/ and looking at the 'Basic Word Count Statistics' --> 'Words' "]
["INFORMATION",{"$nulls":5},"SUMMARY"]
["Assessment used:",{"$nulls":5},"Group Average: Total Number of Words"]
[{"$nulls":6},{"$f":"C7","v":"Time 1 \nTotal Number of Words"},{"$f":"D7","v":"Time 2 \nTotal Number of Words"},{"$f":"Table134[[#Headers],[Difference]]","v":"Difference"}]
["DATA",{"$nulls":5},{"$f":"IFERROR(AVERAGE($C$8:$C$242),\"\")","v":""},{"$f":"IFERROR(AVERAGE($D$8:$D$242),\"\")","v":""},{"$f":"IFERROR(AVERAGE($E$8:$E$242),\"\")","v":{"v":0,"d":"0.0"}}]
["Other information (e.g. class)","Student","Time 1 \nTotal Number of Words","Time 2 \nTotal Number of Words","Difference",null,{"$f":"B4","v":0}]
[{"$nulls":4},{"$f":"Table134[[#This Row],[Time 2 \nTotal Number of Words]]-Table134[[#This Row],[Time 1 \nTotal Number of Words]]","v":0},null,"Comments"]
[{"$nulls":4},{"$f":"Table134[[#This Row],[Time 2 \nTotal Number of Words]]-Table134[[#This Row],[Time 1 \nTotal Number of Words]]","v":0}]
[{"$nulls":4},{"$f":"Table134[[#This Row],[Time 2 \nTotal Number of Words]]-Table134[[#This Row],[Time 1 \nTotal Number of Words]]","v":0}]
[{"$nulls":4},{"$f":"Table134[[#This Row],[Time 2 \nTotal Number of Words]]-Table134[[#This Row],[Time 1 \nTotal Number of Words]]","v":0}]
[{"$nulls":4},{"$f":"Table134[[#This Row],[Time 2 \nTotal Number of Words]]-Table134[[#This Row],[Time 1 \nTotal Number of Words]]","v":0}]
[{"$nulls":4},{"$f":"Table134[[#This Row],[Time 2 \nTotal Number of Words]]-Table134[[#This Row],[Time 1 \nTotal Number of Words]]","v":0}]
[{"$nulls":4},{"$f":"Table134[[#This Row],[Time 2 \nTotal Number of Words]]-Table134[[#This Row],[Time 1 \nTotal Number of Words]]","v":0}]
[{"$nulls":4},{"$f":"Table134[[#This Row],[Time 2 \nTotal Number of Words]]-Table134[[#This Row],[Time 1 \nTotal Number of Words]]","v":0}]
[{"$nulls":4},{"$f":"Table134[[#This Row],[Time 2 \nTotal Number of Words]]-Table134[[#This Row],[Time 1 \nTotal Number of Words]]","v":0}]
[{"$nulls":4},{"$f":"Table134[[#This Row],[Time 2 \nTotal Number of Words]]-Table134[[#This Row],[Time 1 \nTotal Number of Words]]","v":0}]
[{"$nulls":4},{"$f":"Table134[[#This Row],[Time 2 \nTotal Number of Words]]-Table134[[#This Row],[Time 1 \nTotal Number of Words]]","v":0}]
[{"$nulls":4},{"$f":"Table134[[#This Row],[Time 2 \nTotal Number of Words]]-Table134[[#This Row],[Time 1 \nTotal Number of Words]]","v":0}]
[{"$nulls":4},{"$f":"Table134[[#This Row],[Time 2 \nTotal Number of Words]]-Table134[[#This Row],[Time 1 \nTotal Number of Words]]","v":0}]
[{"$nulls":4},{"$f":"Table134[[#This Row],[Time 2 \nTotal Number of Words]]-Table134[[#This Row],[Time 1 \nTotal Number of Words]]","v":0}]
[{"$nulls":4},{"$f":"Table134[[#This Row],[Time 2 \nTotal Number of Words]]-Table134[[#This Row],[Time 1 \nTotal Number of Words]]","v":0}]
[{"$nulls":4},{"$f":"Table134[[#This Row],[Time 2 \nTotal Number of Words]]-Table134[[#This Row],[Time 1 \nTotal Number of Words]]","v":0}]
[{"$nulls":4},{"$f":"Table134[[#This Row],[Time 2 \nTotal Number of Words]]-Table134[[#This Row],[Time 1 \nTotal Number of Words]]","v":0}]
[{"$nulls":4},{"$f":"Table134[[#This Row],[Time 2 \nTotal Number of Words]]-Table134[[#This Row],[Time 1 \nTotal Number of Words]]","v":0}]
[{"$nulls":4},{"$f":"Table134[[#This Row],[Time 2 \nTotal Number of Words]]-Table134[[#This Row],[Time 1 \nTotal Number of Words]]","v":0}]
[{"$nulls":4},{"$f":"Table134[[#This Row],[Time 2 \nTotal Number of Words]]-Table134[[#This Row],[Time 1 \nTotal Number of Words]]","v":0}]
[{"$nulls":4},{"$f":"Table134[[#This Row],[Time 2 \nTotal Number of Words]]-Table134[[#This Row],[Time 1 \nTotal Number of Words]]","v":0}]
[{"$nulls":4},{"$f":"Table134[[#This Row],[Time 2 \nTotal Number of Words]]-Table134[[#This Row],[Time 1 \nTotal Number of Words]]","v":0}]
[{"$nulls":4},{"$f":"Table134[[#This Row],[Time 2 \nTotal Number of Words]]-Table134[[#This Row],[Time 1 \nTotal Number of Words]]","v":0}]
[{"$nulls":4},{"$f":"Table134[[#This Row],[Time 2 \nTotal Number of Words]]-Table134[[#This Row],[Time 1 \nTotal Number of Words]]","v":0}]
[{"$nulls":4},{"$f":"Table134[[#This Row],[Time 2 \nTotal Number of Words]]-Table134[[#This Row],[Time 1 \nTotal Number of Words]]","v":0}]
[{"$nulls":4},{"$f":"Table134[[#This Row],[Time 2 \nTotal Number of Words]]-Table134[[#This Row],[Time 1 \nTotal Number of Words]]","v":0}]
[{"$nulls":4},{"$f":"Table134[[#This Row],[Time 2 \nTotal Number of Words]]-Table134[[#This Row],[Time 1 \nTotal Number of Words]]","v":0}]
[{"$nulls":4},{"$f":"Table134[[#This Row],[Time 2 \nTotal Number of Words]]-Table134[[#This Row],[Time 1 \nTotal Number of Words]]","v":0}]
[{"$nulls":4},{"$f":"Table134[[#This Row],[Time 2 \nTotal Number of Words]]-Table134[[#This Row],[Time 1 \nTotal Number of Words]]","v":0}]
[{"$nulls":4},{"$f":"Table134[[#This Row],[Time 2 \nTotal Number of Words]]-Table134[[#This Row],[Time 1 \nTotal Number of Words]]","v":0}]
[{"$nulls":4},{"$f":"Table134[[#This Row],[Time 2 \nTotal Number of Words]]-Table134[[#This Row],[Time 1 \nTotal Number of Words]]","v":0}]
[{"$nulls":4},{"$f":"Table134[[#This Row],[Time 2 \nTotal Number of Words]]-Table134[[#This Row],[Time 1 \nTotal Number of Words]]","v":0}]
[{"$nulls":4},{"$f":"Table134[[#This Row],[Time 2 \nTotal Number of Words]]-Table134[[#This Row],[Time 1 \nTotal Number of Words]]","v":0}]
[{"$nulls":4},{"$f":"Table134[[#This Row],[Time 2 \nTotal Number of Words]]-Table134[[#This Row],[Time 1 \nTotal Number of Words]]","v":0}]
[{"$nulls":4},{"$f":"Table134[[#This Row],[Time 2 \nTotal Number of Words]]-Table134[[#This Row],[Time 1 \nTotal Number of Words]]","v":0}]
[{"$nulls":4},{"$f":"Table134[[#This Row],[Time 2 \nTotal Number of Words]]-Table134[[#This Row],[Time 1 \nTotal Number of Words]]","v":0}]
[{"$nulls":4},{"$f":"Table134[[#This Row],[Time 2 \nTotal Number of Words]]-Table134[[#This Row],[Time 1 \nTotal Number of Words]]","v":0}]
[{"$nulls":4},{"$f":"Table134[[#This Row],[Time 2 \nTotal Number of Words]]-Table134[[#This Row],[Time 1 \nTotal Number of Words]]","v":0}]
[{"$nulls":4},{"$f":"Table134[[#This Row],[Time 2 \nTotal Number of Words]]-Table134[[#This Row],[Time 1 \nTotal Number of Words]]","v":0}]
[{"$nulls":4},{"$f":"Table134[[#This Row],[Time 2 \nTotal Number of Words]]-Table134[[#This Row],[Time 1 \nTotal Number of Words]]","v":0}]
[{"$nulls":4},{"$f":"Table134[[#This Row],[Time 2 \nTotal Number of Words]]-Table134[[#This Row],[Time 1 \nTotal Number of Words]]","v":0}]
[{"$nulls":4},{"$f":"Table134[[#This Row],[Time 2 \nTotal Number of Words]]-Table134[[#This Row],[Time 1 \nTotal Number of Words]]","v":0}]
[{"$nulls":4},{"$f":"Table134[[#This Row],[Time 2 \nTotal Number of Words]]-Table134[[#This Row],[Time 1 \nTotal Number of Words]]","v":0}]
[{"$nulls":4},{"$f":"Table134[[#This Row],[Time 2 \nTotal Number of Words]]-Table134[[#This Row],[Time 1 \nTotal Number of Words]]","v":0}]
[{"$nulls":4},{"$f":"Table134[[#This Row],[Time 2 \nTotal Number of Words]]-Table134[[#This Row],[Time 1 \nTotal Number of Words]]","v":0}]
[{"$nulls":4},{"$f":"Table134[[#This Row],[Time 2 \nTotal Number of Words]]-Table134[[#This Row],[Time 1 \nTotal Number of Words]]","v":0}]
[{"$nulls":4},{"$f":"Table134[[#This Row],[Time 2 \nTotal Number of Words]]-Table134[[#This Row],[Time 1 \nTotal Number of Words]]","v":0}]
[{"$nulls":4},{"$f":"Table134[[#This Row],[Time 2 \nTotal Number of Words]]-Table134[[#This Row],[Time 1 \nTotal Number of Words]]","v":0}]
[{"$nulls":4},{"$f":"Table134[[#This Row],[Time 2 \nTotal Number of Words]]-Table134[[#This Row],[Time 1 \nTotal Number of Words]]","v":0}]
[{"$nulls":4},{"$f":"Table134[[#This Row],[Time 2 \nTotal Number of Words]]-Table134[[#This Row],[Time 1 \nTotal Number of Words]]","v":0}]
[{"$nulls":4},{"$f":"Table134[[#This Row],[Time 2 \nTotal Number of Words]]-Table134[[#This Row],[Time 1 \nTotal Number of Words]]","v":0}]
[{"$nulls":4},{"$f":"Table134[[#This Row],[Time 2 \nTotal Number of Words]]-Table134[[#This Row],[Time 1 \nTotal Number of Words]]","v":0}]
[{"$nulls":4},{"$f":"Table134[[#This Row],[Time 2 \nTotal Number of Words]]-Table134[[#This Row],[Time 1 \nTotal Number of Words]]","v":0}]
[{"$nulls":4},{"$f":"Table134[[#This Row],[Time 2 \nTotal Number of Words]]-Table134[[#This Row],[Time 1 \nTotal Number of Words]]","v":0}]
[{"$nulls":4},{"$f":"Table134[[#This Row],[Time 2 \nTotal Number of Words]]-Table134[[#This Row],[Time 1 \nTotal Number of Words]]","v":0}]
[{"$nulls":4},{"$f":"Table134[[#This Row],[Time 2 \nTotal Number of Words]]-Table134[[#This Row],[Time 1 \nTotal Number of Words]]","v":0}]
[{"$nulls":4},{"$f":"Table134[[#This Row],[Time 2 \nTotal Number of Words]]-Table134[[#This Row],[Time 1 \nTotal Number of Words]]","v":0}]
[{"$nulls":4},{"$f":"Table134[[#This Row],[Time 2 \nTotal Number of Words]]-Table134[[#This Row],[Time 1 \nTotal Number of Words]]","v":0}]
[{"$nulls":4},{"$f":"Table134[[#This Row],[Time 2 \nTotal Number of Words]]-Table134[[#This Row],[Time 1 \nTotal Number of Words]]","v":0}]
[{"$nulls":4},{"$f":"Table134[[#This Row],[Time 2 \nTotal Number of Words]]-Table134[[#This Row],[Time 1 \nTotal Number of Words]]","v":0}]
[{"$nulls":4},{"$f":"Table134[[#This Row],[Time 2 \nTotal Number of Words]]-Table134[[#This Row],[Time 1 \nTotal Number of Words]]","v":0}]
[{"$nulls":4},{"$f":"Table134[[#This Row],[Time 2 \nTotal Number of Words]]-Table134[[#This Row],[Time 1 \nTotal Number of Words]]","v":0}]
[{"$nulls":4},{"$f":"Table134[[#This Row],[Time 2 \nTotal Number of Words]]-Table134[[#This Row],[Time 1 \nTotal Number of Words]]","v":0}]
[{"$nulls":4},{"$f":"Table134[[#This Row],[Time 2 \nTotal Number of Words]]-Table134[[#This Row],[Time 1 \nTotal Number of Words]]","v":0}]
[{"$nulls":4},{"$f":"Table134[[#This Row],[Time 2 \nTotal Number of Words]]-Table134[[#This Row],[Time 1 \nTotal Number of Words]]","v":0}]
[{"$nulls":4},{"$f":"Table134[[#This Row],[Time 2 \nTotal Number of Words]]-Table134[[#This Row],[Time 1 \nTotal Number of Words]]","v":0}]
[{"$nulls":4},{"$f":"Table134[[#This Row],[Time 2 \nTotal Number of Words]]-Table134[[#This Row],[Time 1 \nTotal Number of Words]]","v":0}]
[{"$nulls":4},{"$f":"Table134[[#This Row],[Time 2 \nTotal Number of Words]]-Table134[[#This Row],[Time 1 \nTotal Number of Words]]","v":0}]
[{"$nulls":4},{"$f":"Table134[[#This Row],[Time 2 \nTotal Number of Words]]-Table134[[#This Row],[Time 1 \nTotal Number of Words]]","v":0}]
[{"$nulls":4},{"$f":"Table134[[#This Row],[Time 2 \nTotal Number of Words]]-Table134[[#This Row],[Time 1 \nTotal Number of Words]]","v":0}]
[{"$nulls":4},{"$f":"Table134[[#This Row],[Time 2 \nTotal Number of Words]]-Table134[[#This Row],[Time 1 \nTotal Number of Words]]","v":0}]
[{"$nulls":4},{"$f":"Table134[[#This Row],[Time 2 \nTotal Number of Words]]-Table134[[#This Row],[Time 1 \nTotal Number of Words]]","v":0}]
[{"$nulls":4},{"$f":"Table134[[#This Row],[Time 2 \nTotal Number of Words]]-Table134[[#This Row],[Time 1 \nTotal Number of Words]]","v":0}]
[{"$nulls":4},{"$f":"Table134[[#This Row],[Time 2 \nTotal Number of Words]]-Table134[[#This Row],[Time 1 \nTotal Number of Words]]","v":0}]
[{"$nulls":4},{"$f":"Table134[[#This Row],[Time 2 \nTotal Number of Words]]-Table134[[#This Row],[Time 1 \nTotal Number of Words]]","v":0}]
[{"$nulls":4},{"$f":"Table134[[#This Row],[Time 2 \nTotal Number of Words]]-Table134[[#This Row],[Time 1 \nTotal Number of Words]]","v":0}]
[{"$nulls":4},{"$f":"Table134[[#This Row],[Time 2 \nTotal Number of Words]]-Table134[[#This Row],[Time 1 \nTotal Number of Words]]","v":0}]
[{"$nulls":4},{"$f":"Table134[[#This Row],[Time 2 \nTotal Number of Words]]-Table134[[#This Row],[Time 1 \nTotal Number of Words]]","v":0}]
[{"$nulls":4},{"$f":"Table134[[#This Row],[Time 2 \nTotal Number of Words]]-Table134[[#This Row],[Time 1 \nTotal Number of Words]]","v":0}]
[{"$nulls":4},{"$f":"Table134[[#This Row],[Time 2 \nTotal Number of Words]]-Table134[[#This Row],[Time 1 \nTotal Number of Words]]","v":0}]
[{"$nulls":4},{"$f":"Table134[[#This Row],[Time 2 \nTotal Number of Words]]-Table134[[#This Row],[Time 1 \nTotal Number of Words]]","v":0}]
[{"$nulls":4},{"$f":"Table134[[#This Row],[Time 2 \nTotal Number of Words]]-Table134[[#This Row],[Time 1 \nTotal Number of Words]]","v":0}]
[{"$nulls":4},{"$f":"Table134[[#This Row],[Time 2 \nTotal Number of Words]]-Table134[[#This Row],[Time 1 \nTotal Number of Words]]","v":0}]
[{"$nulls":4},{"$f":"Table134[[#This Row],[Time 2 \nTotal Number of Words]]-Table134[[#This Row],[Time 1 \nTotal Number of Words]]","v":0}]
[{"$nulls":4},{"$f":"Table134[[#This Row],[Time 2 \nTotal Number of Words]]-Table134[[#This Row],[Time 1 \nTotal Number of Words]]","v":0}]
[{"$nulls":4},{"$f":"Table134[[#This Row],[Time 2 \nTotal Number of Words]]-Table134[[#This Row],[Time 1 \nTotal Number of Words]]","v":0}]
[{"$nulls":4},{"$f":"Table134[[#This Row],[Time 2 \nTotal Number of Words]]-Table134[[#This Row],[Time 1 \nTotal Number of Words]]","v":0}]
[{"$nulls":4},{"$f":"Table134[[#This Row],[Time 2 \nTotal Number of Words]]-Table134[[#This Row],[Time 1 \nTotal Number of Words]]","v":0}]
[{"$nulls":4},{"$f":"Table134[[#This Row],[Time 2 \nTotal Number of Words]]-Table134[[#This Row],[Time 1 \nTotal Number of Words]]","v":0}]
[{"$nulls":4},{"$f":"Table134[[#This Row],[Time 2 \nTotal Number of Words]]-Table134[[#This Row],[Time 1 \nTotal Number of Words]]","v":0}]
[{"$nulls":4},{"$f":"Table134[[#This Row],[Time 2 \nTotal Number of Words]]-Table134[[#This Row],[Time 1 \nTotal Number of Words]]","v":0}]
[{"$nulls":4},{"$f":"Table134[[#This Row],[Time 2 \nTotal Number of Words]]-Table134[[#This Row],[Time 1 \nTotal Number of Words]]","v":0}]
[{"$nulls":4},{"$f":"Table134[[#This Row],[Time 2 \nTotal Number of Words]]-Table134[[#This Row],[Time 1 \nTotal Number of Words]]","v":0}]
[{"$nulls":4},{"$f":"Table134[[#This Row],[Time 2 \nTotal Number of Words]]-Table134[[#This Row],[Time 1 \nTotal Number of Words]]","v":0}]
[{"$nulls":4},{"$f":"Table134[[#This Row],[Time 2 \nTotal Number of Words]]-Table134[[#This Row],[Time 1 \nTotal Number of Words]]","v":0}]
[{"$nulls":4},{"$f":"Table134[[#This Row],[Time 2 \nTotal Number of Words]]-Table134[[#This Row],[Time 1 \nTotal Number of Words]]","v":0}]
[{"$nulls":4},{"$f":"Table134[[#This Row],[Time 2 \nTotal Number of Words]]-Table134[[#This Row],[Time 1 \nTotal Number of Words]]","v":0}]
[{"$nulls":4},{"$f":"Table134[[#This Row],[Time 2 \nTotal Number of Words]]-Table134[[#This Row],[Time 1 \nTotal Number of Words]]","v":0}]
[{"$nulls":4},{"$f":"Table134[[#This Row],[Time 2 \nTotal Number of Words]]-Table134[[#This Row],[Time 1 \nTotal Number of Words]]","v":0}]
[{"$nulls":4},{"$f":"Table134[[#This Row],[Time 2 \nTotal Number of Words]]-Table134[[#This Row],[Time 1 \nTotal Number of Words]]","v":0}]
[{"$nulls":4},{"$f":"Table134[[#This Row],[Time 2 \nTotal Number of Words]]-Table134[[#This Row],[Time 1 \nTotal Number of Words]]","v":0}]
[{"$nulls":4},{"$f":"Table134[[#This Row],[Time 2 \nTotal Number of Words]]-Table134[[#This Row],[Time 1 \nTotal Number of Words]]","v":0}]
[{"$nulls":4},{"$f":"Table134[[#This Row],[Time 2 \nTotal Number of Words]]-Table134[[#This Row],[Time 1 \nTotal Number of Words]]","v":0}]
[{"$nulls":4},{"$f":"Table134[[#This Row],[Time 2 \nTotal Number of Words]]-Table134[[#This Row],[Time 1 \nTotal Number of Words]]","v":0}]
[{"$nulls":4},{"$f":"Table134[[#This Row],[Time 2 \nTotal Number of Words]]-Table134[[#This Row],[Time 1 \nTotal Number of Words]]","v":0}]
[{"$nulls":4},{"$f":"Table134[[#This Row],[Time 2 \nTotal Number of Words]]-Table134[[#This Row],[Time 1 \nTotal Number of Words]]","v":0}]
[{"$nulls":4},{"$f":"Table134[[#This Row],[Time 2 \nTotal Number of Words]]-Table134[[#This Row],[Time 1 \nTotal Number of Words]]","v":0}]
[{"$nulls":4},{"$f":"Table134[[#This Row],[Time 2 \nTotal Number of Words]]-Table134[[#This Row],[Time 1 \nTotal Number of Words]]","v":0}]
[{"$nulls":4},{"$f":"Table134[[#This Row],[Time 2 \nTotal Number of Words]]-Table134[[#This Row],[Time 1 \nTotal Number of Words]]","v":0}]
[{"$nulls":4},{"$f":"Table134[[#This Row],[Time 2 \nTotal Number of Words]]-Table134[[#This Row],[Time 1 \nTotal Number of Words]]","v":0}]
[{"$nulls":4},{"$f":"Table134[[#This Row],[Time 2 \nTotal Number of Words]]-Table134[[#This Row],[Time 1 \nTotal Number of Words]]","v":0}]
[{"$nulls":4},{"$f":"Table134[[#This Row],[Time 2 \nTotal Number of Words]]-Table134[[#This Row],[Time 1 \nTotal Number of Words]]","v":0}]
[{"$nulls":4},{"$f":"Table134[[#This Row],[Time 2 \nTotal Number of Words]]-Table134[[#This Row],[Time 1 \nTotal Number of Words]]","v":0}]
[{"$nulls":4},{"$f":"Table134[[#This Row],[Time 2 \nTotal Number of Words]]-Table134[[#This Row],[Time 1 \nTotal Number of Words]]","v":0}]
[{"$nulls":4},{"$f":"Table134[[#This Row],[Time 2 \nTotal Number of Words]]-Table134[[#This Row],[Time 1 \nTotal Number of Words]]","v":0}]
[{"$nulls":4},{"$f":"Table134[[#This Row],[Time 2 \nTotal Number of Words]]-Table134[[#This Row],[Time 1 \nTotal Number of Words]]","v":0}]
[{"$nulls":4},{"$f":"Table134[[#This Row],[Time 2 \nTotal Number of Words]]-Table134[[#This Row],[Time 1 \nTotal Number of Words]]","v":0}]
[{"$nulls":4},{"$f":"Table134[[#This Row],[Time 2 \nTotal Number of Words]]-Table134[[#This Row],[Time 1 \nTotal Number of Words]]","v":0}]
[{"$nulls":4},{"$f":"Table134[[#This Row],[Time 2 \nTotal Number of Words]]-Table134[[#This Row],[Time 1 \nTotal Number of Words]]","v":0}]
[{"$nulls":4},{"$f":"Table134[[#This Row],[Time 2 \nTotal Number of Words]]-Table134[[#This Row],[Time 1 \nTotal Number of Words]]","v":0}]
[{"$nulls":4},{"$f":"Table134[[#This Row],[Time 2 \nTotal Number of Words]]-Table134[[#This Row],[Time 1 \nTotal Number of Words]]","v":0}]
[{"$nulls":4},{"$f":"Table134[[#This Row],[Time 2 \nTotal Number of Words]]-Table134[[#This Row],[Time 1 \nTotal Number of Words]]","v":0}]
[{"$nulls":4},{"$f":"Table134[[#This Row],[Time 2 \nTotal Number of Words]]-Table134[[#This Row],[Time 1 \nTotal Number of Words]]","v":0}]
[{"$nulls":4},{"$f":"Table134[[#This Row],[Time 2 \nTotal Number of Words]]-Table134[[#This Row],[Time 1 \nTotal Number of Words]]","v":0}]
[{"$nulls":4},{"$f":"Table134[[#This Row],[Time 2 \nTotal Number of Words]]-Table134[[#This Row],[Time 1 \nTotal Number of Words]]","v":0}]
[{"$nulls":4},{"$f":"Table134[[#This Row],[Time 2 \nTotal Number of Words]]-Table134[[#This Row],[Time 1 \nTotal Number of Words]]","v":0}]
[{"$nulls":4},{"$f":"Table134[[#This Row],[Time 2 \nTotal Number of Words]]-Table134[[#This Row],[Time 1 \nTotal Number of Words]]","v":0}]
[{"$nulls":4},{"$f":"Table134[[#This Row],[Time 2 \nTotal Number of Words]]-Table134[[#This Row],[Time 1 \nTotal Number of Words]]","v":0}]
[{"$nulls":4},{"$f":"Table134[[#This Row],[Time 2 \nTotal Number of Words]]-Table134[[#This Row],[Time 1 \nTotal Number of Words]]","v":0}]
[{"$nulls":4},{"$f":"Table134[[#This Row],[Time 2 \nTotal Number of Words]]-Table134[[#This Row],[Time 1 \nTotal Number of Words]]","v":0}]
[{"$nulls":4},{"$f":"Table134[[#This Row],[Time 2 \nTotal Number of Words]]-Table134[[#This Row],[Time 1 \nTotal Number of Words]]","v":0}]
[{"$nulls":4},{"$f":"Table134[[#This Row],[Time 2 \nTotal Number of Words]]-Table134[[#This Row],[Time 1 \nTotal Number of Words]]","v":0}]
[{"$nulls":4},{"$f":"Table134[[#This Row],[Time 2 \nTotal Number of Words]]-Table134[[#This Row],[Time 1 \nTotal Number of Words]]","v":0}]
[{"$nulls":4},{"$f":"Table134[[#This Row],[Time 2 \nTotal Number of Words]]-Table134[[#This Row],[Time 1 \nTotal Number of Words]]","v":0}]
[{"$nulls":4},{"$f":"Table134[[#This Row],[Time 2 \nTotal Number of Words]]-Table134[[#This Row],[Time 1 \nTotal Number of Words]]","v":0}]
[{"$nulls":4},{"$f":"Table134[[#This Row],[Time 2 \nTotal Number of Words]]-Table134[[#This Row],[Time 1 \nTotal Number of Words]]","v":0}]
[{"$nulls":4},{"$f":"Table134[[#This Row],[Time 2 \nTotal Number of Words]]-Table134[[#This Row],[Time 1 \nTotal Number of Words]]","v":0}]
[{"$nulls":4},{"$f":"Table134[[#This Row],[Time 2 \nTotal Number of Words]]-Table134[[#This Row],[Time 1 \nTotal Number of Words]]","v":0}]
[{"$nulls":4},{"$f":"Table134[[#This Row],[Time 2 \nTotal Number of Words]]-Table134[[#This Row],[Time 1 \nTotal Number of Words]]","v":0}]
[{"$nulls":4},{"$f":"Table134[[#This Row],[Time 2 \nTotal Number of Words]]-Table134[[#This Row],[Time 1 \nTotal Number of Words]]","v":0}]
[{"$nulls":4},{"$f":"Table134[[#This Row],[Time 2 \nTotal Number of Words]]-Table134[[#This Row],[Time 1 \nTotal Number of Words]]","v":0}]
[{"$nulls":4},{"$f":"Table134[[#This Row],[Time 2 \nTotal Number of Words]]-Table134[[#This Row],[Time 1 \nTotal Number of Words]]","v":0}]
[{"$nulls":4},{"$f":"Table134[[#This Row],[Time 2 \nTotal Number of Words]]-Table134[[#This Row],[Time 1 \nTotal Number of Words]]","v":0}]
[{"$nulls":4},{"$f":"Table134[[#This Row],[Time 2 \nTotal Number of Words]]-Table134[[#This Row],[Time 1 \nTotal Number of Words]]","v":0}]
[{"$nulls":4},{"$f":"Table134[[#This Row],[Time 2 \nTotal Number of Words]]-Table134[[#This Row],[Time 1 \nTotal Number of Words]]","v":0}]
[{"$nulls":4},{"$f":"Table134[[#This Row],[Time 2 \nTotal Number of Words]]-Table134[[#This Row],[Time 1 \nTotal Number of Words]]","v":0}]
[{"$nulls":4},{"$f":"Table134[[#This Row],[Time 2 \nTotal Number of Words]]-Table134[[#This Row],[Time 1 \nTotal Number of Words]]","v":0}]
[{"$nulls":4},{"$f":"Table134[[#This Row],[Time 2 \nTotal Number of Words]]-Table134[[#This Row],[Time 1 \nTotal Number of Words]]","v":0}]
[{"$nulls":4},{"$f":"Table134[[#This Row],[Time 2 \nTotal Number of Words]]-Table134[[#This Row],[Time 1 \nTotal Number of Words]]","v":0}]
[{"$nulls":4},{"$f":"Table134[[#This Row],[Time 2 \nTotal Number of Words]]-Table134[[#This Row],[Time 1 \nTotal Number of Words]]","v":0}]
[{"$nulls":4},{"$f":"Table134[[#This Row],[Time 2 \nTotal Number of Words]]-Table134[[#This Row],[Time 1 \nTotal Number of Words]]","v":0}]
[{"$nulls":4},{"$f":"Table134[[#This Row],[Time 2 \nTotal Number of Words]]-Table134[[#This Row],[Time 1 \nTotal Number of Words]]","v":0}]
[{"$nulls":4},{"$f":"Table134[[#This Row],[Time 2 \nTotal Number of Words]]-Table134[[#This Row],[Time 1 \nTotal Number of Words]]","v":0}]
[{"$nulls":4},{"$f":"Table134[[#This Row],[Time 2 \nTotal Number of Words]]-Table134[[#This Row],[Time 1 \nTotal Number of Words]]","v":0}]
[{"$nulls":4},{"$f":"Table134[[#This Row],[Time 2 \nTotal Number of Words]]-Table134[[#This Row],[Time 1 \nTotal Number of Words]]","v":0}]
[{"$nulls":4},{"$f":"Table134[[#This Row],[Time 2 \nTotal Number of Words]]-Table134[[#This Row],[Time 1 \nTotal Number of Words]]","v":0}]
[{"$nulls":4},{"$f":"Table134[[#This Row],[Time 2 \nTotal Number of Words]]-Table134[[#This Row],[Time 1 \nTotal Number of Words]]","v":0}]
[{"$nulls":4},{"$f":"Table134[[#This Row],[Time 2 \nTotal Number of Words]]-Table134[[#This Row],[Time 1 \nTotal Number of Words]]","v":0}]
[{"$nulls":4},{"$f":"Table134[[#This Row],[Time 2 \nTotal Number of Words]]-Table134[[#This Row],[Time 1 \nTotal Number of Words]]","v":0}]
[{"$nulls":4},{"$f":"Table134[[#This Row],[Time 2 \nTotal Number of Words]]-Table134[[#This Row],[Time 1 \nTotal Number of Words]]","v":0}]
[{"$nulls":4},{"$f":"Table134[[#This Row],[Time 2 \nTotal Number of Words]]-Table134[[#This Row],[Time 1 \nTotal Number of Words]]","v":0}]
[{"$nulls":4},{"$f":"Table134[[#This Row],[Time 2 \nTotal Number of Words]]-Table134[[#This Row],[Time 1 \nTotal Number of Words]]","v":0}]
[{"$nulls":4},{"$f":"Table134[[#This Row],[Time 2 \nTotal Number of Words]]-Table134[[#This Row],[Time 1 \nTotal Number of Words]]","v":0}]
[{"$nulls":4},{"$f":"Table134[[#This Row],[Time 2 \nTotal Number of Words]]-Table134[[#This Row],[Time 1 \nTotal Number of Words]]","v":0}]
[{"$nulls":4},{"$f":"Table134[[#This Row],[Time 2 \nTotal Number of Words]]-Table134[[#This Row],[Time 1 \nTotal Number of Words]]","v":0}]
[{"$nulls":4},{"$f":"Table134[[#This Row],[Time 2 \nTotal Number of Words]]-Table134[[#This Row],[Time 1 \nTotal Number of Words]]","v":0}]
[{"$nulls":4},{"$f":"Table134[[#This Row],[Time 2 \nTotal Number of Words]]-Table134[[#This Row],[Time 1 \nTotal Number of Words]]","v":0}]
[{"$nulls":4},{"$f":"Table134[[#This Row],[Time 2 \nTotal Number of Words]]-Table134[[#This Row],[Time 1 \nTotal Number of Words]]","v":0}]
[{"$nulls":4},{"$f":"Table134[[#This Row],[Time 2 \nTotal Number of Words]]-Table134[[#This Row],[Time 1 \nTotal Number of Words]]","v":0}]
[{"$nulls":4},{"$f":"Table134[[#This Row],[Time 2 \nTotal Number of Words]]-Table134[[#This Row],[Time 1 \nTotal Number of Words]]","v":0}]
[{"$nulls":4},{"$f":"Table134[[#This Row],[Time 2 \nTotal Number of Words]]-Table134[[#This Row],[Time 1 \nTotal Number of Words]]","v":0}]
[{"$nulls":4},{"$f":"Table134[[#This Row],[Time 2 \nTotal Number of Words]]-Table134[[#This Row],[Time 1 \nTotal Number of Words]]","v":0}]
[{"$nulls":4},{"$f":"Table134[[#This Row],[Time 2 \nTotal Number of Words]]-Table134[[#This Row],[Time 1 \nTotal Number of Words]]","v":0}]
[{"$nulls":4},{"$f":"Table134[[#This Row],[Time 2 \nTotal Number of Words]]-Table134[[#This Row],[Time 1 \nTotal Number of Words]]","v":0}]
[{"$nulls":4},{"$f":"Table134[[#This Row],[Time 2 \nTotal Number of Words]]-Table134[[#This Row],[Time 1 \nTotal Number of Words]]","v":0}]
[{"$nulls":4},{"$f":"Table134[[#This Row],[Time 2 \nTotal Number of Words]]-Table134[[#This Row],[Time 1 \nTotal Number of Words]]","v":0}]
[{"$nulls":4},{"$f":"Table134[[#This Row],[Time 2 \nTotal Number of Words]]-Table134[[#This Row],[Time 1 \nTotal Number of Words]]","v":0}]
[{"$nulls":4},{"$f":"Table134[[#This Row],[Time 2 \nTotal Number of Words]]-Table134[[#This Row],[Time 1 \nTotal Number of Words]]","v":0}]
[{"$nulls":4},{"$f":"Table134[[#This Row],[Time 2 \nTotal Number of Words]]-Table134[[#This Row],[Time 1 \nTotal Number of Words]]","v":0}]
[{"$nulls":4},{"$f":"Table134[[#This Row],[Time 2 \nTotal Number of Words]]-Table134[[#This Row],[Time 1 \nTotal Number of Words]]","v":0}]
[{"$nulls":4},{"$f":"Table134[[#This Row],[Time 2 \nTotal Number of Words]]-Table134[[#This Row],[Time 1 \nTotal Number of Words]]","v":0}]
[{"$nulls":4},{"$f":"Table134[[#This Row],[Time 2 \nTotal Number of Words]]-Table134[[#This Row],[Time 1 \nTotal Number of Words]]","v":0}]
[{"$nulls":4},{"$f":"Table134[[#This Row],[Time 2 \nTotal Number of Words]]-Table134[[#This Row],[Time 1 \nTotal Number of Words]]","v":0}]
[{"$nulls":4},{"$f":"Table134[[#This Row],[Time 2 \nTotal Number of Words]]-Table134[[#This Row],[Time 1 \nTotal Number of Words]]","v":0}]
[{"$nulls":4},{"$f":"Table134[[#This Row],[Time 2 \nTotal Number of Words]]-Table134[[#This Row],[Time 1 \nTotal Number of Words]]","v":0}]
[{"$nulls":4},{"$f":"Table134[[#This Row],[Time 2 \nTotal Number of Words]]-Table134[[#This Row],[Time 1 \nTotal Number of Words]]","v":0}]
[{"$nulls":4},{"$f":"Table134[[#This Row],[Time 2 \nTotal Number of Words]]-Table134[[#This Row],[Time 1 \nTotal Number of Words]]","v":0}]
[{"$nulls":4},{"$f":"Table134[[#This Row],[Time 2 \nTotal Number of Words]]-Table134[[#This Row],[Time 1 \nTotal Number of Words]]","v":0}]
[{"$nulls":4},{"$f":"Table134[[#This Row],[Time 2 \nTotal Number of Words]]-Table134[[#This Row],[Time 1 \nTotal Number of Words]]","v":0}]
[{"$nulls":4},{"$f":"Table134[[#This Row],[Time 2 \nTotal Number of Words]]-Table134[[#This Row],[Time 1 \nTotal Number of Words]]","v":0}]
[{"$nulls":4},{"$f":"Table134[[#This Row],[Time 2 \nTotal Number of Words]]-Table134[[#This Row],[Time 1 \nTotal Number of Words]]","v":0}]
[{"$nulls":4},{"$f":"Table134[[#This Row],[Time 2 \nTotal Number of Words]]-Table134[[#This Row],[Time 1 \nTotal Number of Words]]","v":0}]
[{"$nulls":4},{"$f":"Table134[[#This Row],[Time 2 \nTotal Number of Words]]-Table134[[#This Row],[Time 1 \nTotal Number of Words]]","v":0}]
[{"$nulls":4},{"$f":"Table134[[#This Row],[Time 2 \nTotal Number of Words]]-Table134[[#This Row],[Time 1 \nTotal Number of Words]]","v":0}]
[{"$nulls":4},{"$f":"Table134[[#This Row],[Time 2 \nTotal Number of Words]]-Table134[[#This Row],[Time 1 \nTotal Number of Words]]","v":0}]
[{"$nulls":4},{"$f":"Table134[[#This Row],[Time 2 \nTotal Number of Words]]-Table134[[#This Row],[Time 1 \nTotal Number of Words]]","v":0}]
[{"$nulls":4},{"$f":"Table134[[#This Row],[Time 2 \nTotal Number of Words]]-Table134[[#This Row],[Time 1 \nTotal Number of Words]]","v":0}]
[{"$nulls":4},{"$f":"Table134[[#This Row],[Time 2 \nTotal Number of Words]]-Table134[[#This Row],[Time 1 \nTotal Number of Words]]","v":0}]
[{"$nulls":4},{"$f":"Table134[[#This Row],[Time 2 \nTotal Number of Words]]-Table134[[#This Row],[Time 1 \nTotal Number of Words]]","v":0}]
[{"$nulls":4},{"$f":"Table134[[#This Row],[Time 2 \nTotal Number of Words]]-Table134[[#This Row],[Time 1 \nTotal Number of Words]]","v":0}]
[{"$nulls":4},{"$f":"Table134[[#This Row],[Time 2 \nTotal Number of Words]]-Table134[[#This Row],[Time 1 \nTotal Number of Words]]","v":0}]
[{"$nulls":4},{"$f":"Table134[[#This Row],[Time 2 \nTotal Number of Words]]-Table134[[#This Row],[Time 1 \nTotal Number of Words]]","v":0}]
[{"$nulls":4},{"$f":"Table134[[#This Row],[Time 2 \nTotal Number of Words]]-Table134[[#This Row],[Time 1 \nTotal Number of Words]]","v":0}]
[{"$nulls":4},{"$f":"Table134[[#This Row],[Time 2 \nTotal Number of Words]]-Table134[[#This Row],[Time 1 \nTotal Number of Words]]","v":0}]
[{"$nulls":4},{"$f":"Table134[[#This Row],[Time 2 \nTotal Number of Words]]-Table134[[#This Row],[Time 1 \nTotal Number of Words]]","v":0}]
[{"$nulls":4},{"$f":"Table134[[#This Row],[Time 2 \nTotal Number of Words]]-Table134[[#This Row],[Time 1 \nTotal Number of Words]]","v":0}]
[{"$nulls":4},{"$f":"Table134[[#This Row],[Time 2 \nTotal Number of Words]]-Table134[[#This Row],[Time 1 \nTotal Number of Words]]","v":0}]
[{"$nulls":4},{"$f":"Table134[[#This Row],[Time 2 \nTotal Number of Words]]-Table134[[#This Row],[Time 1 \nTotal Number of Words]]","v":0}]
[{"$nulls":4},{"$f":"Table134[[#This Row],[Time 2 \nTotal Number of Words]]-Table134[[#This Row],[Time 1 \nTotal Number of Words]]","v":0}]
[{"$nulls":4},{"$f":"Table134[[#This Row],[Time 2 \nTotal Number of Words]]-Table134[[#This Row],[Time 1 \nTotal Number of Words]]","v":0}]
[{"$nulls":4},{"$f":"Table134[[#This Row],[Time 2 \nTotal Number of Words]]-Table134[[#This Row],[Time 1 \nTotal Number of Words]]","v":0}]
[{"$nulls":4},{"$f":"Table134[[#This Row],[Time 2 \nTotal Number of Words]]-Table134[[#This Row],[Time 1 \nTotal Number of Words]]","v":0}]
[{"$nulls":4},{"$f":"Table134[[#This Row],[Time 2 \nTotal Number of Words]]-Table134[[#This Row],[Time 1 \nTotal Number of Words]]","v":0}]
[{"$nulls":4},{"$f":"Table134[[#This Row],[Time 2 \nTotal Number of Words]]-Table134[[#This Row],[Time 1 \nTotal Number of Words]]","v":0}]
[{"$nulls":4},{"$f":"Table134[[#This Row],[Time 2 \nTotal Number of Words]]-Table134[[#This Row],[Time 1 \nTotal Number of Words]]","v":0}]
[{"$nulls":4},{"$f":"Table134[[#This Row],[Time 2 \nTotal Number of Words]]-Table134[[#This Row],[Time 1 \nTotal Number of Words]]","v":0}]
[{"$nulls":4},{"$f":"Table134[[#This Row],[Time 2 \nTotal Number of Words]]-Table134[[#This Row],[Time 1 \nTotal Number of Words]]","v":0}]
[{"$nulls":4},{"$f":"Table134[[#This Row],[Time 2 \nTotal Number of Words]]-Table134[[#This Row],[Time 1 \nTotal Number of Words]]","v":0}]
[{"$nulls":4},{"$f":"Table134[[#This Row],[Time 2 \nTotal Number of Words]]-Table134[[#This Row],[Time 1 \nTotal Number of Words]]","v":0}]
[{"$nulls":4},{"$f":"Table134[[#This Row],[Time 2 \nTotal Number of Words]]-Table134[[#This Row],[Time 1 \nTotal Number of Words]]","v":0}]
[{"$nulls":4},{"$f":"Table134[[#This Row],[Time 2 \nTotal Number of Words]]-Table134[[#This Row],[Time 1 \nTotal Number of Words]]","v":0}]
[{"$nulls":4},{"$f":"Table134[[#This Row],[Time 2 \nTotal Number of Words]]-Table134[[#This Row],[Time 1 \nTotal Number of Words]]","v":0}]
[{"$nulls":4},{"$f":"Table134[[#This Row],[Time 2 \nTotal Number of Words]]-Table134[[#This Row],[Time 1 \nTotal Number of Words]]","v":0}]
[{"$nulls":4},{"$f":"Table134[[#This Row],[Time 2 \nTotal Number of Words]]-Table134[[#This Row],[Time 1 \nTotal Number of Words]]","v":0}]
[{"$nulls":4},{"$f":"Table134[[#This Row],[Time 2 \nTotal Number of Words]]-Table134[[#This Row],[Time 1 \nTotal Number of Words]]","v":0}]
[{"$nulls":4},{"$f":"Table134[[#This Row],[Time 2 \nTotal Number of Words]]-Table134[[#This Row],[Time 1 \nTotal Number of Words]]","v":0}]
[{"$nulls":4},{"$f":"Table134[[#This Row],[Time 2 \nTotal Number of Words]]-Table134[[#This Row],[Time 1 \nTotal Number of Words]]","v":0}]
[{"$nulls":4},{"$f":"Table134[[#This Row],[Time 2 \nTotal Number of Words]]-Table134[[#This Row],[Time 1 \nTotal Number of Words]]","v":0}]
[{"$nulls":4},{"$f":"Table134[[#This Row],[Time 2 \nTotal Number of Words]]-Table134[[#This Row],[Time 1 \nTotal Number of Words]]","v":0}]
[{"$nulls":4},{"$f":"Table134[[#This Row],[Time 2 \nTotal Number of Words]]-Table134[[#This Row],[Time 1 \nTotal Number of Words]]","v":0}]
[{"$nulls":4},{"$f":"Table134[[#This Row],[Time 2 \nTotal Number of Words]]-Table134[[#This Row],[Time 1 \nTotal Number of Words]]","v":0}]
[{"$nulls":4},{"$f":"Table134[[#This Row],[Time 2 \nTotal Number of Words]]-Table134[[#This Row],[Time 1 \nTotal Number of Words]]","v":0}]
[{"$nulls":4},{"$f":"Table134[[#This Row],[Time 2 \nTotal Number of Words]]-Table134[[#This Row],[Time 1 \nTotal Number of Words]]","v":0}]
[{"$nulls":4},{"$f":"Table134[[#This Row],[Time 2 \nTotal Number of Words]]-Table134[[#This Row],[Time 1 \nTotal Number of Words]]","v":0}]
[{"$nulls":4},{"$f":"Table134[[#This Row],[Time 2 \nTotal Number of Words]]-Table134[[#This Row],[Time 1 \nTotal Number of Words]]","v":0}]

{"sheet":"Number Different Words","index":1,"n_rows":242,"n_cols":9,"rows_kept":242,"merged":[[0,0,0,4],[1,0,1,4],[2,0,2,4],[2,6,2,8],[3,1,3,4],[3,6,3,8],[4,6,5,6],[4,7,5,7],[4,8,5,8],[5,0,5,4],[8,6,8,8],[9,6,12,8]]}
["Number of Different Words"]
["This information can be obtained by entering a transcript of students' narratives into https://wordcounttools.com/ and looking at the 'Extra Word Count Statistics' --> 'Unique Words' "]
["INFORMATION",{"$nulls":5},"SUMMARY"]
["Assessment used:",{"$nulls":5},"Group Average: Number of Different Words"]
[{"$nulls":6},{"$f":"C7","v":"Time 1\nNumber of Unique (Different) Words"},{"$f":"D7","v":"Time 2\nNumber of Unique (Different) Words"},{"$f":"Table13[[#Headers],[Difference]]","v":"Difference"}]
["DATA"]
["Other information (e.g. class)","Student","Time 1\nNumber of Unique (Different) Words","Time 2\nNumber of Unique (Different) Words","Difference",null,{"$f":"IFERROR(AVERAGE($C$8:$C$242),\"\")","v":""},{"$f":"IFERROR(AVERAGE($D$8:$D$242),\"\")","v":""},{"$f":"IFERROR(AVERAGE($E$8:$E$242),\"\")","v":0}]
[{"$nulls":4},{"$f":"Table13[[#This Row],[Time 2\nNumber of Unique (Different) Words]]-Table13[[#This Row],[Time 1\nNumber of Unique (Different) Words]]","v":{"v":0,"d":"0.0"}}]
[{"$nulls":4},{"$f":"Table13[[#This Row],[Time 2\nNumber of Unique (Different) Words]]-Table13[[#This Row],[Time 1\nNumber of Unique (Different) Words]]","v":{"v":0,"d":"0.0"}},null,"Comments"]
[{"$nulls":4},{"$f":"Table13[[#This Row],[Time 2\nNumber of Unique (Different) Words]]-Table13[[#This Row],[Time 1\nNumber of Unique (Different) Words]]","v":{"v":0,"d":"0.0"}}]
[{"$nulls":4},{"$f":"Table13[[#This Row],[Time 2\nNumber of Unique (Different) Words]]-Table13[[#This Row],[Time 1\nNumber of Unique (Different) Words]]","v":{"v":0,"d":"0.0"}}]
[{"$nulls":4},{"$f":"Table13[[#This Row],[Time 2\nNumber of Unique (Different) Words]]-Table13[[#This Row],[Time 1\nNumber of Unique (Different) Words]]","v":{"v":0,"d":"0.0"}}]
[{"$nulls":4},{"$f":"Table13[[#This Row],[Time 2\nNumber of Unique (Different) Words]]-Table13[[#This Row],[Time 1\nNumber of Unique (Different) Words]]","v":{"v":0,"d":"0.0"}}]
[{"$nulls":4},{"$f":"Table13[[#This Row],[Time 2\nNumber of Unique (Different) Words]]-Table13[[#This Row],[Time 1\nNumber of Unique (Different) Words]]","v":{"v":0,"d":"0.0"}}]
[{"$nulls":4},{"$f":"Table13[[#This Row],[Time 2\nNumber of Unique (Different) Words]]-Table13[[#This Row],[Time 1\nNumber of Unique (Different) Words]]","v":{"v":0,"d":"0.0"}}]
[{"$nulls":4},{"$f":"Table13[[#This Row],[Time 2\nNumber of Unique (Different) Words]]-Table13[[#This Row],[Time 1\nNumber of Unique (Different) Words]]","v":{"v":0,"d":"0.0"}}]
[{"$nulls":4},{"$f":"Table13[[#This Row],[Time 2\nNumber of Unique (Different) Words]]-Table13[[#This Row],[Time 1\nNumber of Unique (Different) Words]]","v":{"v":0,"d":"0.0"}}]
[{"$nulls":4},{"$f":"Table13[[#This Row],[Time 2\nNumber of Unique (Different) Words]]-Table13[[#This Row],[Time 1\nNumber of Unique (Different) Words]]","v":{"v":0,"d":"0.0"}}]
[{"$nulls":4},{"$f":"Table13[[#This Row],[Time 2\nNumber of Unique (Different) Words]]-Table13[[#This Row],[Time 1\nNumber of Unique (Different) Words]]","v":{"v":0,"d":"0.0"}}]
[{"$nulls":4},{"$f":"Table13[[#This Row],[Time 2\nNumber of Unique (Different) Words]]-Table13[[#This Row],[Time 1\nNumber of Unique (Different) Words]]","v":{"v":0,"d":"0.0"}}]
[{"$nulls":4},{"$f":"Table13[[#This Row],[Time 2\nNumber of Unique (Different) Words]]-Table13[[#This Row],[Time 1\nNumber of Unique (Different) Words]]","v":{"v":0,"d":"0.0"}}]
[{"$nulls":4},{"$f":"Table13[[#This Row],[Time 2\nNumber of Unique (Different) Words]]-Table13[[#This Row],[Time 1\nNumber of Unique (Different) Words]]","v":{"v":0,"d":"0.0"}}]
[{"$nulls":4},{"$f":"Table13[[#This Row],[Time 2\nNumber of Unique (Different) Words]]-Table13[[#This Row],[Time 1\nNumber of Unique (Different) Words]]","v":{"v":0,"d":"0.0"}}]
[{"$nulls":4},{"$f":"Table13[[#This Row],[Time 2\nNumber of Unique (Different) Words]]-Table13[[#This Row],[Time 1\nNumber of Unique (Different) Words]]","v":{"v":0,"d":"0.0"}}]
[{"$nulls":4},{"$f":"Table13[[#This Row],[Time 2\nNumber of Unique (Different) Words]]-Table13[[#This Row],[Time 1\nNumber of Unique (Different) Words]]","v":{"v":0,"d":"0.0"}}]
[{"$nulls":4},{"$f":"Table13[[#This Row],[Time 2\nNumber of Unique (Different) Words]]-Table13[[#This Row],[Time 1\nNumber of Unique (Different) Words]]","v":{"v":0,"d":"0.0"}}]
[{"$nulls":4},{"$f":"Table13[[#This Row],[Time 2\nNumber of Unique (Different) Words]]-Table13[[#This Row],[Time 1\nNumber of Unique (Different) Words]]","v":{"v":0,"d":"0.0"}}]
[{"$nulls":4},{"$f":"Table13[[#This Row],[Time 2\nNumber of Unique (Different) Words]]-Table13[[#This Row],[Time 1\nNumber of Unique (Different) Words]]","v":{"v":0,"d":"0.0"}}]
[{"$nulls":4},{"$f":"Table13[[#This Row],[Time 2\nNumber of Unique (Different) Words]]-Table13[[#This Row],[Time 1\nNumber of Unique (Different) Words]]","v":{"v":0,"d":"0.0"}}]
[{"$nulls":4},{"$f":"Table13[[#This Row],[Time 2\nNumber of Unique (Different) Words]]-Table13[[#This Row],[Time 1\nNumber of Unique (Different) Words]]","v":{"v":0,"d":"0.0"}}]
[{"$nulls":4},{"$f":"Table13[[#This Row],[Time 2\nNumber of Unique (Different) Words]]-Table13[[#This Row],[Time 1\nNumber of Unique (Different) Words]]","v":{"v":0,"d":"0.0"}}]
[{"$nulls":4},{"$f":"Table13[[#This Row],[Time 2\nNumber of Unique (Different) Words]]-Table13[[#This Row],[Time 1\nNumber of Unique (Different) Words]]","v":{"v":0,"d":"0.0"}}]
[{"$nulls":4},{"$f":"Table13[[#This Row],[Time 2\nNumber of Unique (Different) Words]]-Table13[[#This Row],[Time 1\nNumber of Unique (Different) Words]]","v":{"v":0,"d":"0.0"}}]
[{"$nulls":4},{"$f":"Table13[[#This Row],[Time 2\nNumber of Unique (Different) Words]]-Table13[[#This Row],[Time 1\nNumber of Unique (Different) Words]]","v":{"v":0,"d":"0.0"}}]
[{"$nulls":4},{"$f":"Table13[[#This Row],[Time 2\nNumber of Unique (Different) Words]]-Table13[[#This Row],[Time 1\nNumber of Unique (Different) Words]]","v":{"v":0,"d":"0.0"}}]
[{"$nulls":4},{"$f":"Table13[[#This Row],[Time 2\nNumber of Unique (Different) Words]]-Table13[[#This Row],[Time 1\nNumber of Unique (Different) Words]]","v":{"v":0,"d":"0.0"}}]
[{"$nulls":4},{"$f":"Table13[[#This Row],[Time 2\nNumber of Unique (Different) Words]]-Table13[[#This Row],[Time 1\nNumber of Unique (Different) Words]]","v":{"v":0,"d":"0.0"}}]
[{"$nulls":4},{"$f":"Table13[[#This Row],[Time 2\nNumber of Unique (Different) Words]]-Table13[[#This Row],[Time 1\nNumber of Unique (Different) Words]]","v":{"v":0,"d":"0.0"}}]
[{"$nulls":4},{"$f":"Table13[[#This Row],[Time 2\nNumber of Unique (Different) Words]]-Table13[[#This Row],[Time 1\nNumber of Unique (Different) Words]]","v":{"v":0,"d":"0.0"}}]
[{"$nulls":4},{"$f":"Table13[[#This Row],[Time 2\nNumber of Unique (Different) Words]]-Table13[[#This Row],[Time 1\nNumber of Unique (Different) Words]]","v":{"v":0,"d":"0.0"}}]
[{"$nulls":4},{"$f":"Table13[[#This Row],[Time 2\nNumber of Unique (Different) Words]]-Table13[[#This Row],[Time 1\nNumber of Unique (Different) Words]]","v":{"v":0,"d":"0.0"}}]
[{"$nulls":4},{"$f":"Table13[[#This Row],[Time 2\nNumber of Unique (Different) Words]]-Table13[[#This Row],[Time 1\nNumber of Unique (Different) Words]]","v":{"v":0,"d":"0.0"}}]
[{"$nulls":4},{"$f":"Table13[[#This Row],[Time 2\nNumber of Unique (Different) Words]]-Table13[[#This Row],[Time 1\nNumber of Unique (Different) Words]]","v":{"v":0,"d":"0.0"}}]
[{"$nulls":4},{"$f":"Table13[[#This Row],[Time 2\nNumber of Unique (Different) Words]]-Table13[[#This Row],[Time 1\nNumber of Unique (Different) Words]]","v":{"v":0,"d":"0.0"}}]
[{"$nulls":4},{"$f":"Table13[[#This Row],[Time 2\nNumber of Unique (Different) Words]]-Table13[[#This Row],[Time 1\nNumber of Unique (Different) Words]]","v":{"v":0,"d":"0.0"}}]
[{"$nulls":4},{"$f":"Table13[[#This Row],[Time 2\nNumber of Unique (Different) Words]]-Table13[[#This Row],[Time 1\nNumber of Unique (Different) Words]]","v":{"v":0,"d":"0.0"}}]
[{"$nulls":4},{"$f":"Table13[[#This Row],[Time 2\nNumber of Unique (Different) Words]]-Table13[[#This Row],[Time 1\nNumber of Unique (Different) Words]]","v":{"v":0,"d":"0.0"}}]
[{"$nulls":4},{"$f":"Table13[[#This Row],[Time 2\nNumber of Unique (Different) Words]]-Table13[[#This Row],[Time 1\nNumber of Unique (Different) Words]]","v":{"v":0,"d":"0.0"}}]
[{"$nulls":4},{"$f":"Table13[[#This Row],[Time 2\nNumber of Unique (Different) Words]]-Table13[[#This Row],[Time 1\nNumber of Unique (Different) Words]]","v":{"v":0,"d":"0.0"}}]
[{"$nulls":4},{"$f":"Table13[[#This Row],[Time 2\nNumber of Unique (Different) Words]]-Table13[[#This Row],[Time 1\nNumber of Unique (Different) Words]]","v":{"v":0,"d":"0.0"}}]
[{"$nulls":4},{"$f":"Table13[[#This Row],[Time 2\nNumber of Unique (Different) Words]]-Table13[[#This Row],[Time 1\nNumber of Unique (Different) Words]]","v":{"v":0,"d":"0.0"}}]
[{"$nulls":4},{"$f":"Table13[[#This Row],[Time 2\nNumber of Unique (Different) Words]]-Table13[[#This Row],[Time 1\nNumber of Unique (Different) Words]]","v":{"v":0,"d":"0.0"}}]
[{"$nulls":4},{"$f":"Table13[[#This Row],[Time 2\nNumber of Unique (Different) Words]]-Table13[[#This Row],[Time 1\nNumber of Unique (Different) Words]]","v":{"v":0,"d":"0.0"}}]
[{"$nulls":4},{"$f":"Table13[[#This Row],[Time 2\nNumber of Unique (Different) Words]]-Table13[[#This Row],[Time 1\nNumber of Unique (Different) Words]]","v":{"v":0,"d":"0.0"}}]
[{"$nulls":4},{"$f":"Table13[[#This Row],[Time 2\nNumber of Unique (Different) Words]]-Table13[[#This Row],[Time 1\nNumber of Unique (Different) Words]]","v":{"v":0,"d":"0.0"}}]
[{"$nulls":4},{"$f":"Table13[[#This Row],[Time 2\nNumber of Unique (Different) Words]]-Table13[[#This Row],[Time 1\nNumber of Unique (Different) Words]]","v":{"v":0,"d":"0.0"}}]
[{"$nulls":4},{"$f":"Table13[[#This Row],[Time 2\nNumber of Unique (Different) Words]]-Table13[[#This Row],[Time 1\nNumber of Unique (Different) Words]]","v":{"v":0,"d":"0.0"}}]
[{"$nulls":4},{"$f":"Table13[[#This Row],[Time 2\nNumber of Unique (Different) Words]]-Table13[[#This Row],[Time 1\nNumber of Unique (Different) Words]]","v":{"v":0,"d":"0.0"}}]
[{"$nulls":4},{"$f":"Table13[[#This Row],[Time 2\nNumber of Unique (Different) Words]]-Table13[[#This Row],[Time 1\nNumber of Unique (Different) Words]]","v":{"v":0,"d":"0.0"}}]
[{"$nulls":4},{"$f":"Table13[[#This Row],[Time 2\nNumber of Unique (Different) Words]]-Table13[[#This Row],[Time 1\nNumber of Unique (Different) Words]]","v":{"v":0,"d":"0.0"}}]
[{"$nulls":4},{"$f":"Table13[[#This Row],[Time 2\nNumber of Unique (Different) Words]]-Table13[[#This Row],[Time 1\nNumber of Unique (Different) Words]]","v":{"v":0,"d":"0.0"}}]
[{"$nulls":4},{"$f":"Table13[[#This Row],[Time 2\nNumber of Unique (Different) Words]]-Table13[[#This Row],[Time 1\nNumber of Unique (Different) Words]]","v":{"v":0,"d":"0.0"}}]
[{"$nulls":4},{"$f":"Table13[[#This Row],[Time 2\nNumber of Unique (Different) Words]]-Table13[[#This Row],[Time 1\nNumber of Unique (Different) Words]]","v":{"v":0,"d":"0.0"}}]
[{"$nulls":4},{"$f":"Table13[[#This Row],[Time 2\nNumber of Unique (Different) Words]]-Table13[[#This Row],[Time 1\nNumber of Unique (Different) Words]]","v":{"v":0,"d":"0.0"}}]
[{"$nulls":4},{"$f":"Table13[[#This Row],[Time 2\nNumber of Unique (Different) Words]]-Table13[[#This Row],[Time 1\nNumber of Unique (Different) Words]]","v":{"v":0,"d":"0.0"}}]
[{"$nulls":4},{"$f":"Table13[[#This Row],[Time 2\nNumber of Unique (Different) Words]]-Table13[[#This Row],[Time 1\nNumber of Unique (Different) Words]]","v":{"v":0,"d":"0.0"}}]
[{"$nulls":4},{"$f":"Table13[[#This Row],[Time 2\nNumber of Unique (Different) Words]]-Table13[[#This Row],[Time 1\nNumber of Unique (Different) Words]]","v":{"v":0,"d":"0.0"}}]
[{"$nulls":4},{"$f":"Table13[[#This Row],[Time 2\nNumber of Unique (Different) Words]]-Table13[[#This Row],[Time 1\nNumber of Unique (Different) Words]]","v":{"v":0,"d":"0.0"}}]
[{"$nulls":4},{"$f":"Table13[[#This Row],[Time 2\nNumber of Unique (Different) Words]]-Table13[[#This Row],[Time 1\nNumber of Unique (Different) Words]]","v":{"v":0,"d":"0.0"}}]
[{"$nulls":4},{"$f":"Table13[[#This Row],[Time 2\nNumber of Unique (Different) Words]]-Table13[[#This Row],[Time 1\nNumber of Unique (Different) Words]]","v":{"v":0,"d":"0.0"}}]
[{"$nulls":4},{"$f":"Table13[[#This Row],[Time 2\nNumber of Unique (Different) Words]]-Table13[[#This Row],[Time 1\nNumber of Unique (Different) Words]]","v":{"v":0,"d":"0.0"}}]
[{"$nulls":4},{"$f":"Table13[[#This Row],[Time 2\nNumber of Unique (Different) Words]]-Table13[[#This Row],[Time 1\nNumber of Unique (Different) Words]]","v":{"v":0,"d":"0.0"}}]
[{"$nulls":4},{"$f":"Table13[[#This Row],[Time 2\nNumber of Unique (Different) Words]]-Table13[[#This Row],[Time 1\nNumber of Unique (Different) Words]]","v":{"v":0,"d":"0.0"}}]
[{"$nulls":4},{"$f":"Table13[[#This Row],[Time 2\nNumber of Unique (Different) Words]]-Table13[[#This Row],[Time 1\nNumber of Unique (Different) Words]]","v":{"v":0,"d":"0.0"}}]
[{"$nulls":4},{"$f":"Table13[[#This Row],[Time 2\nNumber of Unique (Different) Words]]-Table13[[#This Row],[Time 1\nNumber of Unique (Different) Words]]","v":{"v":0,"d":"0.0"}}]
[{"$nulls":4},{"$f":"Table13[[#This Row],[Time 2\nNumber of Unique (Different) Words]]-Table13[[#This Row],[Time 1\nNumber of Unique (Different) Words]]","v":{"v":0,"d":"0.0"}}]
[{"$nulls":4},{"$f":"Table13[[#This Row],[Time 2\nNumber of Unique (Different) Words]]-Table13[[#This Row],[Time 1\nNumber of Unique (Different) Words]]","v":{"v":0,"d":"0.0"}}]
[{"$nulls":4},{"$f":"Table13[[#This Row],[Time 2\nNumber of Unique (Different) Words]]-Table13[[#This Row],[Time 1\nNumber of Unique (Different) Words]]","v":{"v":0,"d":"0.0"}}]
[{"$nulls":4},{"$f":"Table13[[#This Row],[Time 2\nNumber of Unique (Different) Words]]-Table13[[#This Row],[Time 1\nNumber of Unique (Different) Words]]","v":{"v":0,"d":"0.0"}}]
[{"$nulls":4},{"$f":"Table13[[#This Row],[Time 2\nNumber of Unique (Different) Words]]-Table13[[#This Row],[Time 1\nNumber of Unique (Different) Words]]","v":{"v":0,"d":"0.0"}}]
[{"$nulls":4},{"$f":"Table13[[#This Row],[Time 2\nNumber of Unique (Different) Words]]-Table13[[#This Row],[Time 1\nNumber of Unique (Different) Words]]","v":{"v":0,"d":"0.0"}}]
[{"$nulls":4},{"$f":"Table13[[#This Row],[Time 2\nNumber of Unique (Different) Words]]-Table13[[#This Row],[Time 1\nNumber of Unique (Different) Words]]","v":{"v":0,"d":"0.0"}}]
[{"$nulls":4},{"$f":"Table13[[#This Row],[Time 2\nNumber of Unique (Different) Words]]-Table13[[#This Row],[Time 1\nNumber of Unique (Different) Words]]","v":{"v":0,"d":"0.0"}}]
[{"$nulls":4},{"$f":"Table13[[#This Row],[Time 2\nNumber of Unique (Different) Words]]-Table13[[#This Row],[Time 1\nNumber of Unique (Different) Words]]","v":{"v":0,"d":"0.0"}}]
[{"$nulls":4},{"$f":"Table13[[#This Row],[Time 2\nNumber of Unique (Different) Words]]-Table13[[#This Row],[Time 1\nNumber of Unique (Different) Words]]","v":{"v":0,"d":"0.0"}}]
[{"$nulls":4},{"$f":"Table13[[#This Row],[Time 2\nNumber of Unique (Different) Words]]-Table13[[#This Row],[Time 1\nNumber of Unique (Different) Words]]","v":{"v":0,"d":"0.0"}}]
[{"$nulls":4},{"$f":"Table13[[#This Row],[Time 2\nNumber of Unique (Different) Words]]-Table13[[#This Row],[Time 1\nNumber of Unique (Different) Words]]","v":{"v":0,"d":"0.0"}}]
[{"$nulls":4},{"$f":"Table13[[#This Row],[Time 2\nNumber of Unique (Different) Words]]-Table13[[#This Row],[Time 1\nNumber of Unique (Different) Words]]","v":{"v":0,"d":"0.0"}}]
[{"$nulls":4},{"$f":"Table13[[#This Row],[Time 2\nNumber of Unique (Different) Words]]-Table13[[#This Row],[Time 1\nNumber of Unique (Different) Words]]","v":{"v":0,"d":"0.0"}}]
[{"$nulls":4},{"$f":"Table13[[#This Row],[Time 2\nNumber of Unique (Different) Words]]-Table13[[#This Row],[Time 1\nNumber of Unique (Different) Words]]","v":{"v":0,"d":"0.0"}}]
[{"$nulls":4},{"$f":"Table13[[#This Row],[Time 2\nNumber of Unique (Different) Words]]-Table13[[#This Row],[Time 1\nNumber of Unique (Different) Words]]","v":{"v":0,"d":"0.0"}}]
[{"$nulls":4},{"$f":"Table13[[#This Row],[Time 2\nNumber of Unique (Different) Words]]-Table13[[#This Row],[Time 1\nNumber of Unique (Different) Words]]","v":{"v":0,"d":"0.0"}}]
[{"$nulls":4},{"$f":"Table13[[#This Row],[Time 2\nNumber of Unique (Different) Words]]-Table13[[#This Row],[Time 1\nNumber of Unique (Different) Words]]","v":{"v":0,"d":"0.0"}}]
[{"$nulls":4},{"$f":"Table13[[#This Row],[Time 2\nNumber of Unique (Different) Words]]-Table13[[#This Row],[Time 1\nNumber of Unique (Different) Words]]","v":{"v":0,"d":"0.0"}}]
[{"$nulls":4},{"$f":"Table13[[#This Row],[Time 2\nNumber of Unique (Different) Words]]-Table13[[#This Row],[Time 1\nNumber of Unique (Different) Words]]","v":{"v":0,"d":"0.0"}}]
[{"$nulls":4},{"$f":"Table13[[#This Row],[Time 2\nNumber of Unique (Different) Words]]-Table13[[#This Row],[Time 1\nNumber of Unique (Different) Words]]","v":{"v":0,"d":"0.0"}}]
[{"$nulls":4},{"$f":"Table13[[#This Row],[Time 2\nNumber of Unique (Different) Words]]-Table13[[#This Row],[Time 1\nNumber of Unique (Different) Words]]","v":{"v":0,"d":"0.0"}}]
[{"$nulls":4},{"$f":"Table13[[#This Row],[Time 2\nNumber of Unique (Different) Words]]-Table13[[#This Row],[Time 1\nNumber of Unique (Different) Words]]","v":{"v":0,"d":"0.0"}}]
[{"$nulls":4},{"$f":"Table13[[#This Row],[Time 2\nNumber of Unique (Different) Words]]-Table13[[#This Row],[Time 1\nNumber of Unique (Different) Words]]","v":{"v":0,"d":"0.0"}}]
[{"$nulls":4},{"$f":"Table13[[#This Row],[Time 2\nNumber of Unique (Different) Words]]-Table13[[#This Row],[Time 1\nNumber of Unique (Different) Words]]","v":{"v":0,"d":"0.0"}}]
[{"$nulls":4},{"$f":"Table13[[#This Row],[Time 2\nNumber of Unique (Different) Words]]-Table13[[#This Row],[Time 1\nNumber of Unique (Different) Words]]","v":{"v":0,"d":"0.0"}}]
[{"$nulls":4},{"$f":"Table13[[#This Row],[Time 2\nNumber of Unique (Different) Words]]-Table13[[#This Row],[Time 1\nNumber of Unique (Different) Words]]","v":{"v":0,"d":"0.0"}}]
[{"$nulls":4},{"$f":"Table13[[#This Row],[Time 2\nNumber of Unique (Different) Words]]-Table13[[#This Row],[Time 1\nNumber of Unique (Different) Words]]","v":{"v":0,"d":"0.0"}}]
[{"$nulls":4},{"$f":"Table13[[#This Row],[Time 2\nNumber of Unique (Different) Words]]-Table13[[#This Row],[Time 1\nNumber of Unique (Different) Words]]","v":{"v":0,"d":"0.0"}}]
[{"$nulls":4},{"$f":"Table13[[#This Row],[Time 2\nNumber of Unique (Different) Words]]-Table13[[#This Row],[Time 1\nNumber of Unique (Different) Words]]","v":{"v":0,"d":"0.0"}}]
[{"$nulls":4},{"$f":"Table13[[#This Row],[Time 2\nNumber of Unique (Different) Words]]-Table13[[#This Row],[Time 1\nNumber of Unique (Different) Words]]","v":{"v":0,"d":"0.0"}}]
[{"$nulls":4},{"$f":"Table13[[#This Row],[Time 2\nNumber of Unique (Different) Words]]-Table13[[#This Row],[Time 1\nNumber of Unique (Different) Words]]","v":{"v":0,"d":"0.0"}}]
[{"$nulls":4},{"$f":"Table13[[#This Row],[Time 2\nNumber of Unique (Different) Words]]-Table13[[#This Row],[Time 1\nNumber of Unique (Different) Words]]","v":{"v":0,"d":"0.0"}}]
[{"$nulls":4},{"$f":"Table13[[#This Row],[Time 2\nNumber of Unique (Different) Words]]-Table13[[#This Row],[Time 1\nNumber of Unique (Different) Words]]","v":{"v":0,"d":"0.0"}}]
[{"$nulls":4},{"$f":"Table13[[#This Row],[Time 2\nNumber of Unique (Different) Words]]-Table13[[#This Row],[Time 1\nNumber of Unique (Different) Words]]","v":{"v":0,"d":"0.0"}}]
[{"$nulls":4},{"$f":"Table13[[#This Row],[Time 2\nNumber of Unique (Different) Words]]-Table13[[#This Row],[Time 1\nNumber of Unique (Different) Words]]","v":{"v":0,"d":"0.0"}}]
[{"$nulls":4},{"$f":"Table13[[#This Row],[Time 2\nNumber of Unique (Different) Words]]-Table13[[#This Row],[Time 1\nNumber of Unique (Different) Words]]","v":{"v":0,"d":"0.0"}}]
[{"$nulls":4},{"$f":"Table13[[#This Row],[Time 2\nNumber of Unique (Different) Words]]-Table13[[#This Row],[Time 1\nNumber of Unique (Different) Words]]","v":{"v":0,"d":"0.0"}}]
[{"$nulls":4},{"$f":"Table13[[#This Row],[Time 2\nNumber of Unique (Different) Words]]-Table13[[#This Row],[Time 1\nNumber of Unique (Different) Words]]","v":{"v":0,"d":"0.0"}}]
[{"$nulls":4},{"$f":"Table13[[#This Row],[Time 2\nNumber of Unique (Different) Words]]-Table13[[#This Row],[Time 1\nNumber of Unique (Different) Words]]","v":{"v":0,"d":"0.0"}}]
[{"$nulls":4},{"$f":"Table13[[#This Row],[Time 2\nNumber of Unique (Different) Words]]-Table13[[#This Row],[Time 1\nNumber of Unique (Different) Words]]","v":{"v":0,"d":"0.0"}}]
[{"$nulls":4},{"$f":"Table13[[#This Row],[Time 2\nNumber of Unique (Different) Words]]-Table13[[#This Row],[Time 1\nNumber of Unique (Different) Words]]","v":{"v":0,"d":"0.0"}}]
[{"$nulls":4},{"$f":"Table13[[#This Row],[Time 2\nNumber of Unique (Different) Words]]-Table13[[#This Row],[Time 1\nNumber of Unique (Different) Words]]","v":{"v":0,"d":"0.0"}}]
[{"$nulls":4},{"$f":"Table13[[#This Row],[Time 2\nNumber of Unique (Different) Words]]-Table13[[#This Row],[Time 1\nNumber of Unique (Different) Words]]","v":{"v":0,"d":"0.0"}}]
[{"$nulls":4},{"$f":"Table13[[#This Row],[Time 2\nNumber of Unique (Different) Words]]-Table13[[#This Row],[Time 1\nNumber of Unique (Different) Words]]","v":{"v":0,"d":"0.0"}}]
[{"$nulls":4},{"$f":"Table13[[#This Row],[Time 2\nNumber of Unique (Different) Words]]-Table13[[#This Row],[Time 1\nNumber of Unique (Different) Words]]","v":{"v":0,"d":"0.0"}}]
[{"$nulls":4},{"$f":"Table13[[#This Row],[Time 2\nNumber of Unique (Different) Words]]-Table13[[#This Row],[Time 1\nNumber of Unique (Different) Words]]","v":{"v":0,"d":"0.0"}}]
[{"$nulls":4},{"$f":"Table13[[#This Row],[Time 2\nNumber of Unique (Different) Words]]-Table13[[#This Row],[Time 1\nNumber of Unique (Different) Words]]","v":{"v":0,"d":"0.0"}}]
[{"$nulls":4},{"$f":"Table13[[#This Row],[Time 2\nNumber of Unique (Different) Words]]-Table13[[#This Row],[Time 1\nNumber of Unique (Different) Words]]","v":{"v":0,"d":"0.0"}}]
[{"$nulls":4},{"$f":"Table13[[#This Row],[Time 2\nNumber of Unique (Different) Words]]-Table13[[#This Row],[Time 1\nNumber of Unique (Different) Words]]","v":{"v":0,"d":"0.0"}}]
[{"$nulls":4},{"$f":"Table13[[#This Row],[Time 2\nNumber of Unique (Different) Words]]-Table13[[#This Row],[Time 1\nNumber of Unique (Different) Words]]","v":{"v":0,"d":"0.0"}}]
[{"$nulls":4},{"$f":"Table13[[#This Row],[Time 2\nNumber of Unique (Different) Words]]-Table13[[#This Row],[Time 1\nNumber of Unique (Different) Words]]","v":{"v":0,"d":"0.0"}}]
[{"$nulls":4},{"$f":"Table13[[#This Row],[Time 2\nNumber of Unique (Different) Words]]-Table13[[#This Row],[Time 1\nNumber of Unique (Different) Words]]","v":{"v":0,"d":"0.0"}}]
[{"$nulls":4},{"$f":"Table13[[#This Row],[Time 2\nNumber of Unique (Different) Words]]-Table13[[#This Row],[Time 1\nNumber of Unique (Different) Words]]","v":{"v":0,"d":"0.0"}}]
[{"$nulls":4},{"$f":"Table13[[#This Row],[Time 2\nNumber of Unique (Different) Words]]-Table13[[#This Row],[Time 1\nNumber of Unique (Different) Words]]","v":{"v":0,"d":"0.0"}}]
[{"$nulls":4},{"$f":"Table13[[#This Row],[Time 2\nNumber of Unique (Different) Words]]-Table13[[#This Row],[Time 1\nNumber of Unique (Different) Words]]","v":{"v":0,"d":"0.0"}}]
[{"$nulls":4},{"$f":"Table13[[#This Row],[Time 2\nNumber of Unique (Different) Words]]-Table13[[#This Row],[Time 1\nNumber of Unique (Different) Words]]","v":{"v":0,"d":"0.0"}}]
[{"$nulls":4},{"$f":"Table13[[#This Row],[Time 2\nNumber of Unique (Different) Words]]-Table13[[#This Row],[Time 1\nNumber of Unique (Different) Words]]","v":{"v":0,"d":"0.0"}}]
[{"$nulls":4},{"$f":"Table13[[#This Row],[Time 2\nNumber of Unique (Different) Words]]-Table13[[#This Row],[Time 1\nNumber of Unique (Different) Words]]","v":{"v":0,"d":"0.0"}}]
[{"$nulls":4},{"$f":"Table13[[#This Row],[Time 2\nNumber of Unique (Different) Words]]-Table13[[#This Row],[Time 1\nNumber of Unique (Different) Words]]","v":{"v":0,"d":"0.0"}}]
[{"$nulls":4},{"$f":"Table13[[#This Row],[Time 2\nNumber of Unique (Different) Words]]-Table13[[#This Row],[Time 1\nNumber of Unique (Different) Words]]","v":{"v":0,"d":"0.0"}}]
[{"$nulls":4},{"$f":"Table13[[#This Row],[Time 2\nNumber of Unique (Different) Words]]-Table13[[#This Row],[Time 1\nNumber of Unique (Different) Words]]","v":{"v":0,"d":"0.0"}}]
[{"$nulls":4},{"$f":"Table13[[#This Row],[Time 2\nNumber of Unique (Different) Words]]-Table13[[#This Row],[Time 1\nNumber of Unique (Different) Words]]","v":{"v":0,"d":"0.0"}}]
[{"$nulls":4},{"$f":"Table13[[#This Row],[Time 2\nNumber of Unique (Different) Words]]-Table13[[#This Row],[Time 1\nNumber of Unique (Different) Words]]","v":{"v":0,"d":"0.0"}}]
[{"$nulls":4},{"$f":"Table13[[#This Row],[Time 2\nNumber of Unique (Different) Words]]-Table13[[#This Row],[Time 1\nNumber of Unique (Different) Words]]","v":{"v":0,"d":"0.0"}}]
[{"$nulls":4},{"$f":"Table13[[#This Row],[Time 2\nNumber of Unique (Different) Words]]-Table13[[#This Row],[Time 1\nNumber of Unique (Different) Words]]","v":{"v":0,"d":"0.0"}}]
[{"$nulls":4},{"$f":"Table13[[#This Row],[Time 2\nNumber of Unique (Different) Words]]-Table13[[#This Row],[Time 1\nNumber of Unique (Different) Words]]","v":{"v":0,"d":"0.0"}}]
[{"$nulls":4},{"$f":"Table13[[#This Row],[Time 2\nNumber of Unique (Different) Words]]-Table13[[#This Row],[Time 1\nNumber of Unique (Different) Words]]","v":{"v":0,"d":"0.0"}}]
[{"$nulls":4},{"$f":"Table13[[#This Row],[Time 2\nNumber of Unique (Different) Words]]-Table13[[#This Row],[Time 1\nNumber of Unique (Different) Words]]","v":{"v":0,"d":"0.0"}}]
[{"$nulls":4},{"$f":"Table13[[#This Row],[Time 2\nNumber of Unique (Different) Words]]-Table13[[#This Row],[Time 1\nNumber of Unique (Different) Words]]","v":{"v":0,"d":"0.0"}}]
[{"$nulls":4},{"$f":"Table13[[#This Row],[Time 2\nNumber of Unique (Different) Words]]-Table13[[#This Row],[Time 1\nNumber of Unique (Different) Words]]","v":{"v":0,"d":"0.0"}}]
[{"$nulls":4},{"$f":"Table13[[#This Row],[Time 2\nNumber of Unique (Different) Words]]-Table13[[#This Row],[Time 1\nNumber of Unique (Different) Words]]","v":{"v":0,"d":"0.0"}}]
[{"$nulls":4},{"$f":"Table13[[#This Row],[Time 2\nNumber of Unique (Different) Words]]-Table13[[#This Row],[Time 1\nNumber of Unique (Different) Words]]","v":{"v":0,"d":"0.0"}}]
[{"$nulls":4},{"$f":"Table13[[#This Row],[Time 2\nNumber of Unique (Different) Words]]-Table13[[#This Row],[Time 1\nNumber of Unique (Different) Words]]","v":{"v":0,"d":"0.0"}}]
[{"$nulls":4},{"$f":"Table13[[#This Row],[Time 2\nNumber of Unique (Different) Words]]-Table13[[#This Row],[Time 1\nNumber of Unique (Different) Words]]","v":{"v":0,"d":"0.0"}}]
[{"$nulls":4},{"$f":"Table13[[#This Row],[Time 2\nNumber of Unique (Different) Words]]-Table13[[#This Row],[Time 1\nNumber of Unique (Different) Words]]","v":{"v":0,"d":"0.0"}}]
[{"$nulls":4},{"$f":"Table13[[#This Row],[Time 2\nNumber of Unique (Different) Words]]-Table13[[#This Row],[Time 1\nNumber of Unique (Different) Words]]","v":{"v":0,"d":"0.0"}}]
[{"$nulls":4},{"$f":"Table13[[#This Row],[Time 2\nNumber of Unique (Different) Words]]-Table13[[#This Row],[Time 1\nNumber of Unique (Different) Words]]","v":{"v":0,"d":"0.0"}}]
[{"$nulls":4},{"$f":"Table13[[#This Row],[Time 2\nNumber of Unique (Different) Words]]-Table13[[#This Row],[Time 1\nNumber of Unique (Different) Words]]","v":{"v":0,"d":"0.0"}}]
[{"$nulls":4},{"$f":"Table13[[#This Row],[Time 2\nNumber of Unique (Different) Words]]-Table13[[#This Row],[Time 1\nNumber of Unique (Different) Words]]","v":{"v":0,"d":"0.0"}}]
[{"$nulls":4},{"$f":"Table13[[#This Row],[Time 2\nNumber of Unique (Different) Words]]-Table13[[#This Row],[Time 1\nNumber of Unique (Different) Words]]","v":{"v":0,"d":"0.0"}}]
[{"$nulls":4},{"$f":"Table13[[#This Row],[Time 2\nNumber of Unique (Different) Words]]-Table13[[#This Row],[Time 1\nNumber of Unique (Different) Words]]","v":{"v":0,"d":"0.0"}}]
[{"$nulls":4},{"$f":"Table13[[#This Row],[Time 2\nNumber of Unique (Different) Words]]-Table13[[#This Row],[Time 1\nNumber of Unique (Different) Words]]","v":{"v":0,"d":"0.0"}}]
[{"$nulls":4},{"$f":"Table13[[#This Row],[Time 2\nNumber of Unique (Different) Words]]-Table13[[#This Row],[Time 1\nNumber of Unique (Different) Words]]","v":{"v":0,"d":"0.0"}}]
[{"$nulls":4},{"$f":"Table13[[#This Row],[Time 2\nNumber of Unique (Different) Words]]-Table13[[#This Row],[Time 1\nNumber of Unique (Different) Words]]","v":{"v":0,"d":"0.0"}}]
[{"$nulls":4},{"$f":"Table13[[#This Row],[Time 2\nNumber of Unique (Different) Words]]-Table13[[#This Row],[Time 1\nNumber of Unique (Different) Words]]","v":{"v":0,"d":"0.0"}}]
[{"$nulls":4},{"$f":"Table13[[#This Row],[Time 2\nNumber of Unique (Different) Words]]-Table13[[#This Row],[Time 1\nNumber of Unique (Different) Words]]","v":{"v":0,"d":"0.0"}}]
[{"$nulls":4},{"$f":"Table13[[#This Row],[Time 2\nNumber of Unique (Different) Words]]-Table13[[#This Row],[Time 1\nNumber of Unique (Different) Words]]","v":{"v":0,"d":"0.0"}}]
[{"$nulls":4},{"$f":"Table13[[#This Row],[Time 2\nNumber of Unique (Different) Words]]-Table13[[#This Row],[Time 1\nNumber of Unique (Different) Words]]","v":{"v":0,"d":"0.0"}}]
[{"$nulls":4},{"$f":"Table13[[#This Row],[Time 2\nNumber of Unique (Different) Words]]-Table13[[#This Row],[Time 1\nNumber of Unique (Different) Words]]","v":{"v":0,"d":"0.0"}}]
[{"$nulls":4},{"$f":"Table13[[#This Row],[Time 2\nNumber of Unique (Different) Words]]-Table13[[#This Row],[Time 1\nNumber of Unique (Different) Words]]","v":{"v":0,"d":"0.0"}}]
[{"$nulls":4},{"$f":"Table13[[#This Row],[Time 2\nNumber of Unique (Different) Words]]-Table13[[#This Row],[Time 1\nNumber of Unique (Different) Words]]","v":{"v":0,"d":"0.0"}}]
[{"$nulls":4},{"$f":"Table13[[#This Row],[Time 2\nNumber of Unique (Different) Words]]-Table13[[#This Row],[Time 1\nNumber of Unique (Different) Words]]","v":{"v":0,"d":"0.0"}}]
[{"$nulls":4},{"$f":"Table13[[#This Row],[Time 2\nNumber of Unique (Different) Words]]-Table13[[#This Row],[Time 1\nNumber of Unique (Different) Words]]","v":{"v":0,"d":"0.0"}}]
[{"$nulls":4},{"$f":"Table13[[#This Row],[Time 2\nNumber of Unique (Different) Words]]-Table13[[#This Row],[Time 1\nNumber of Unique (Different) Words]]","v":{"v":0,"d":"0.0"}}]
[{"$nulls":4},{"$f":"Table13[[#This Row],[Time 2\nNumber of Unique (Different) Words]]-Table13[[#This Row],[Time 1\nNumber of Unique (Different) Words]]","v":{"v":0,"d":"0.0"}}]
[{"$nulls":4},{"$f":"Table13[[#This Row],[Time 2\nNumber of Unique (Different) Words]]-Table13[[#This Row],[Time 1\nNumber of Unique (Different) Words]]","v":{"v":0,"d":"0.0"}}]
[{"$nulls":4},{"$f":"Table13[[#This Row],[Time 2\nNumber of Unique (Different) Words]]-Table13[[#This Row],[Time 1\nNumber of Unique (Different) Words]]","v":{"v":0,"d":"0.0"}}]
[{"$nulls":4},{"$f":"Table13[[#This Row],[Time 2\nNumber of Unique (Different) Words]]-Table13[[#This Row],[Time 1\nNumber of Unique (Different) Words]]","v":{"v":0,"d":"0.0"}}]
[{"$nulls":4},{"$f":"Table13[[#This Row],[Time 2\nNumber of Unique (Different) Words]]-Table13[[#This Row],[Time 1\nNumber of Unique (Different) Words]]","v":{"v":0,"d":"0.0"}}]
[{"$nulls":4},{"$f":"Table13[[#This Row],[Time 2\nNumber of Unique (Different) Words]]-Table13[[#This Row],[Time 1\nNumber of Unique (Different) Words]]","v":{"v":0,"d":"0.0"}}]
[{"$nulls":4},{"$f":"Table13[[#This Row],[Time 2\nNumber of Unique (Different) Words]]-Table13[[#This Row],[Time 1\nNumber of Unique (Different) Words]]","v":{"v":0,"d":"0.0"}}]
[{"$nulls":4},{"$f":"Table13[[#This Row],[Time 2\nNumber of Unique (Different) Words]]-Table13[[#This Row],[Time 1\nNumber of Unique (Different) Words]]","v":{"v":0,"d":"0.0"}}]
[{"$nulls":4},{"$f":"Table13[[#This Row],[Time 2\nNumber of Unique (Different) Words]]-Table13[[#This Row],[Time 1\nNumber of Unique (Different) Words]]","v":{"v":0,"d":"0.0"}}]
[{"$nulls":4},{"$f":"Table13[[#This Row],[Time 2\nNumber of Unique (Different) Words]]-Table13[[#This Row],[Time 1\nNumber of Unique (Different) Words]]","v":{"v":0,"d":"0.0"}}]
[{"$nulls":4},{"$f":"Table13[[#This Row],[Time 2\nNumber of Unique (Different) Words]]-Table13[[#This Row],[Time 1\nNumber of Unique (Different) Words]]","v":{"v":0,"d":"0.0"}}]
[{"$nulls":4},{"$f":"Table13[[#This Row],[Time 2\nNumber of Unique (Different) Words]]-Table13[[#This Row],[Time 1\nNumber of Unique (Different) Words]]","v":{"v":0,"d":"0.0"}}]
[{"$nulls":4},{"$f":"Table13[[#This Row],[Time 2\nNumber of Unique (Different) Words]]-Table13[[#This Row],[Time 1\nNumber of Unique (Different) Words]]","v":{"v":0,"d":"0.0"}}]
[{"$nulls":4},{"$f":"Table13[[#This Row],[Time 2\nNumber of Unique (Different) Words]]-Table13[[#This Row],[Time 1\nNumber of Unique (Different) Words]]","v":{"v":0,"d":"0.0"}}]
[{"$nulls":4},{"$f":"Table13[[#This Row],[Time 2\nNumber of Unique (Different) Words]]-Table13[[#This Row],[Time 1\nNumber of Unique (Different) Words]]","v":{"v":0,"d":"0.0"}}]
[{"$nulls":4},{"$f":"Table13[[#This Row],[Time 2\nNumber of Unique (Different) Words]]-Table13[[#This Row],[Time 1\nNumber of Unique (Different) Words]]","v":{"v":0,"d":"0.0"}}]
[{"$nulls":4},{"$f":"Table13[[#This Row],[Time 2\nNumber of Unique (Different) Words]]-Table13[[#This Row],[Time 1\nNumber of Unique (Different) Words]]","v":{"v":0,"d":"0.0"}}]
[{"$nulls":4},{"$f":"Table13[[#This Row],[Time 2\nNumber of Unique (Different) Words]]-Table13[[#This Row],[Time 1\nNumber of Unique (Different) Words]]","v":{"v":0,"d":"0.0"}}]
[{"$nulls":4},{"$f":"Table13[[#This Row],[Time 2\nNumber of Unique (Different) Words]]-Table13[[#This Row],[Time 1\nNumber of Unique (Different) Words]]","v":{"v":0,"d":"0.0"}}]
[{"$nulls":4},{"$f":"Table13[[#This Row],[Time 2\nNumber of Unique (Different) Words]]-Table13[[#This Row],[Time 1\nNumber of Unique (Different) Words]]","v":{"v":0,"d":"0.0"}}]
[{"$nulls":4},{"$f":"Table13[[#This Row],[Time 2\nNumber of Unique (Different) Words]]-Table13[[#This Row],[Time 1\nNumber of Unique (Different) Words]]","v":{"v":0,"d":"0.0"}}]
[{"$nulls":4},{"$f":"Table13[[#This Row],[Time 2\nNumber of Unique (Different) Words]]-Table13[[#This Row],[Time 1\nNumber of Unique (Different) Words]]","v":{"v":0,"d":"0.0"}}]
[{"$nulls":4},{"$f":"Table13[[#This Row],[Time 2\nNumber of Unique (Different) Words]]-Table13[[#This Row],[Time 1\nNumber of Unique (Different) Words]]","v":{"v":0,"d":"0.0"}}]
[{"$nulls":4},{"$f":"Table13[[#This Row],[Time 2\nNumber of Unique (Different) Words]]-Table13[[#This Row],[Time 1\nNumber of Unique (Different) Words]]","v":{"v":0,"d":"0.0"}}]
[{"$nulls":4},{"$f":"Table13[[#This Row],[Time 2\nNumber of Unique (Different) Words]]-Table13[[#This Row],[Time 1\nNumber of Unique (Different) Words]]","v":{"v":0,"d":"0.0"}}]
[{"$nulls":4},{"$f":"Table13[[#This Row],[Time 2\nNumber of Unique (Different) Words]]-Table13[[#This Row],[Time 1\nNumber of Unique (Different) Words]]","v":{"v":0,"d":"0.0"}}]
[{"$nulls":4},{"$f":"Table13[[#This Row],[Time 2\nNumber of Unique (Different) Words]]-Table13[[#This Row],[Time 1\nNumber of Unique (Different) Words]]","v":{"v":0,"d":"0.0"}}]
[{"$nulls":4},{"$f":"Table13[[#This Row],[Time 2\nNumber of Unique (Different) Words]]-Table13[[#This Row],[Time 1\nNumber of Unique (Different) Words]]","v":{"v":0,"d":"0.0"}}]
[{"$nulls":4},{"$f":"Table13[[#This Row],[Time 2\nNumber of Unique (Different) Words]]-Table13[[#This Row],[Time 1\nNumber of Unique (Different) Words]]","v":{"v":0,"d":"0.0"}}]
[{"$nulls":4},{"$f":"Table13[[#This Row],[Time 2\nNumber of Unique (Different) Words]]-Table13[[#This Row],[Time 1\nNumber of Unique (Different) Words]]","v":{"v":0,"d":"0.0"}}]
[{"$nulls":4},{"$f":"Table13[[#This Row],[Time 2\nNumber of Unique (Different) Words]]-Table13[[#This Row],[Time 1\nNumber of Unique (Different) Words]]","v":{"v":0,"d":"0.0"}}]
[{"$nulls":4},{"$f":"Table13[[#This Row],[Time 2\nNumber of Unique (Different) Words]]-Table13[[#This Row],[Time 1\nNumber of Unique (Different) Words]]","v":{"v":0,"d":"0.0"}}]
[{"$nulls":4},{"$f":"Table13[[#This Row],[Time 2\nNumber of Unique (Different) Words]]-Table13[[#This Row],[Time 1\nNumber of Unique (Different) Words]]","v":{"v":0,"d":"0.0"}}]
[{"$nulls":4},{"$f":"Table13[[#This Row],[Time 2\nNumber of Unique (Different) Words]]-Table13[[#This Row],[Time 1\nNumber of Unique (Different) Words]]","v":{"v":0,"d":"0.0"}}]
[{"$nulls":4},{"$f":"Table13[[#This Row],[Time 2\nNumber of Unique (Different) Words]]-Table13[[#This Row],[Time 1\nNumber of Unique (Different) Words]]","v":{"v":0,"d":"0.0"}}]
[{"$nulls":4},{"$f":"Table13[[#This Row],[Time 2\nNumber of Unique (Different) Words]]-Table13[[#This Row],[Time 1\nNumber of Unique (Different) Words]]","v":{"v":0,"d":"0.0"}}]
[{"$nulls":4},{"$f":"Table13[[#This Row],[Time 2\nNumber of Unique (Different) Words]]-Table13[[#This Row],[Time 1\nNumber of Unique (Different) Words]]","v":{"v":0,"d":"0.0"}}]
[{"$nulls":4},{"$f":"Table13[[#This Row],[Time 2\nNumber of Unique (Different) Words]]-Table13[[#This Row],[Time 1\nNumber of Unique (Different) Words]]","v":{"v":0,"d":"0.0"}}]
[{"$nulls":4},{"$f":"Table13[[#This Row],[Time 2\nNumber of Unique (Different) Words]]-Table13[[#This Row],[Time 1\nNumber of Unique (Different) Words]]","v":{"v":0,"d":"0.0"}}]
[{"$nulls":4},{"$f":"Table13[[#This Row],[Time 2\nNumber of Unique (Different) Words]]-Table13[[#This Row],[Time 1\nNumber of Unique (Different) Words]]","v":{"v":0,"d":"0.0"}}]
[{"$nulls":4},{"$f":"Table13[[#This Row],[Time 2\nNumber of Unique (Different) Words]]-Table13[[#This Row],[Time 1\nNumber of Unique (Different) Words]]","v":{"v":0,"d":"0.0"}}]
[{"$nulls":4},{"$f":"Table13[[#This Row],[Time 2\nNumber of Unique (Different) Words]]-Table13[[#This Row],[Time 1\nNumber of Unique (Different) Words]]","v":{"v":0,"d":"0.0"}}]
[{"$nulls":4},{"$f":"Table13[[#This Row],[Time 2\nNumber of Unique (Different) Words]]-Table13[[#This Row],[Time 1\nNumber of Unique (Different) Words]]","v":{"v":0,"d":"0.0"}}]
[{"$nulls":4},{"$f":"Table13[[#This Row],[Time 2\nNumber of Unique (Different) Words]]-Table13[[#This Row],[Time 1\nNumber of Unique (Different) Words]]","v":{"v":0,"d":"0.0"}}]
[{"$nulls":4},{"$f":"Table13[[#This Row],[Time 2\nNumber of Unique (Different) Words]]-Table13[[#This Row],[Time 1\nNumber of Unique (Different) Words]]","v":{"v":0,"d":"0.0"}}]
[{"$nulls":4},{"$f":"Table13[[#This Row],[Time 2\nNumber of Unique (Different) Words]]-Table13[[#This Row],[Time 1\nNumber of Unique (Different) Words]]","v":{"v":0,"d":"0.0"}}]
[{"$nulls":4},{"$f":"Table13[[#This Row],[Time 2\nNumber of Unique (Different) Words]]-Table13[[#This Row],[Time 1\nNumber of Unique (Different) Words]]","v":{"v":0,"d":"0.0"}}]
[{"$nulls":4},{"$f":"Table13[[#This Row],[Time 2\nNumber of Unique (Different) Words]]-Table13[[#This Row],[Time 1\nNumber of Unique (Different) Words]]","v":{"v":0,"d":"0.0"}}]
[{"$nulls":4},{"$f":"Table13[[#This Row],[Time 2\nNumber of Unique (Different) Words]]-Table13[[#This Row],[Time 1\nNumber of Unique (Different) Words]]","v":{"v":0,"d":"0.0"}}]
[{"$nulls":4},{"$f":"Table13[[#This Row],[Time 2\nNumber of Unique (Different) Words]]-Table13[[#This Row],[Time 1\nNumber of Unique (Different) Words]]","v":{"v":0,"d":"0.0"}}]
[{"$nulls":4},{"$f":"Table13[[#This Row],[Time 2\nNumber of Unique (Different) Words]]-Table13[[#This Row],[Time 1\nNumber of Unique (Different) Words]]","v":{"v":0,"d":"0.0"}}]
[{"$nulls":4},{"$f":"Table13[[#This Row],[Time 2\nNumber of Unique (Different) Words]]-Table13[[#This Row],[Time 1\nNumber of Unique (Different) Words]]","v":{"v":0,"d":"0.0"}}]
[{"$nulls":4},{"$f":"Table13[[#This Row],[Time 2\nNumber of Unique (Different) Words]]-Table13[[#This Row],[Time 1\nNumber of Unique (Different) Words]]","v":{"v":0,"d":"0.0"}}]
[{"$nulls":4},{"$f":"Table13[[#This Row],[Time 2\nNumber of Unique (Different) Words]]-Table13[[#This Row],[Time 1\nNumber of Unique (Different) Words]]","v":{"v":0,"d":"0.0"}}]
[{"$nulls":4},{"$f":"Table13[[#This Row],[Time 2\nNumber of Unique (Different) Words]]-Table13[[#This Row],[Time 1\nNumber of Unique (Different) Words]]","v":{"v":0,"d":"0.0"}}]
[{"$nulls":4},{"$f":"Table13[[#This Row],[Time 2\nNumber of Unique (Different) Words]]-Table13[[#This Row],[Time 1\nNumber of Unique (Different) Words]]","v":{"v":0,"d":"0.0"}}]
[{"$nulls":4},{"$f":"Table13[[#This Row],[Time 2\nNumber of Unique (Different) Words]]-Table13[[#This Row],[Time 1\nNumber of Unique (Different) Words]]","v":{"v":0,"d":"0.0"}}]
[{"$nulls":4},{"$f":"Table13[[#This Row],[Time 2\nNumber of Unique (Different) Words]]-Table13[[#This Row],[Time 1\nNumber of Unique (Different) Words]]","v":{"v":0,"d":"0.0"}}]
[{"$nulls":4},{"$f":"Table13[[#This Row],[Time 2\nNumber of Unique (Different) Words]]-Table13[[#This Row],[Time 1\nNumber of Unique (Different) Words]]","v":{"v":0,"d":"0.0"}}]
[{"$nulls":4},{"$f":"Table13[[#This Row],[Time 2\nNumber of Unique (Different) Words]]-Table13[[#This Row],[Time 1\nNumber of Unique (Different) Words]]","v":{"v":0,"d":"0.0"}}]
[{"$nulls":4},{"$f":"Table13[[#This Row],[Time 2\nNumber of Unique (Different) Words]]-Table13[[#This Row],[Time 1\nNumber of Unique (Different) Words]]","v":{"v":0,"d":"0.0"}}]
[{"$nulls":4},{"$f":"Table13[[#This Row],[Time 2\nNumber of Unique (Different) Words]]-Table13[[#This Row],[Time 1\nNumber of Unique (Different) Words]]","v":{"v":0,"d":"0.0"}}]
[{"$nulls":4},{"$f":"Table13[[#This Row],[Time 2\nNumber of Unique (Different) Words]]-Table13[[#This Row],[Time 1\nNumber of Unique (Different) Words]]","v":{"v":0,"d":"0.0"}}]
[{"$nulls":4},{"$f":"Table13[[#This Row],[Time 2\nNumber of Unique (Different) Words]]-Table13[[#This Row],[Time 1\nNumber of Unique (Different) Words]]","v":{"v":0,"d":"0.0"}}]
[{"$nulls":4},{"$f":"Table13[[#This Row],[Time 2\nNumber of Unique (Different) Words]]-Table13[[#This Row],[Time 1\nNumber of Unique (Different) Words]]","v":{"v":0,"d":"0.0"}}]
[{"$nulls":4},{"$f":"Table13[[#This Row],[Time 2\nNumber of Unique (Different) Words]]-Table13[[#This Row],[Time 1\nNumber of Unique (Different) Words]]","v":{"v":0,"d":"0.0"}}]
[{"$nulls":4},{"$f":"Table13[[#This Row],[Time 2\nNumber of Unique (Different) Words]]-Table13[[#This Row],[Time 1\nNumber of Unique (Different) Words]]","v":{"v":0,"d":"0.0"}}]
[{"$nulls":4},{"$f":"Table13[[#This Row],[Time 2\nNumber of Unique (Different) Words]]-Table13[[#This Row],[Time 1\nNumber of Unique (Different) Words]]","v":{"v":0,"d":"0.0"}}]
[{"$nulls":4},{"$f":"Table13[[#This Row],[Time 2\nNumber of Unique (Different) Words]]-Table13[[#This Row],[Time 1\nNumber of Unique (Different) Words]]","v":{"v":0,"d":"0.0"}}]
[{"$nulls":4},{"$f":"Table13[[#This Row],[Time 2\nNumber of Unique (Different) Words]]-Table13[[#This Row],[Time 1\nNumber of Unique (Different) Words]]","v":{"v":0,"d":"0.0"}}]
[{"$nulls":4},{"$f":"Table13[[#This Row],[Time 2\nNumber of Unique (Different) Words]]-Table13[[#This Row],[Time 1\nNumber of Unique (Different) Words]]","v":{"v":0,"d":"0.0"}}]
[{"$nulls":4},{"$f":"Table13[[#This Row],[Time 2\nNumber of Unique (Different) Words]]-Table13[[#This Row],[Time 1\nNumber of Unique (Different) Words]]","v":{"v":0,"d":"0.0"}}]

{"sheet":"% Different Words","index":2,"n_rows":242,"n_cols":9,"rows_kept":242,"merged":[[0,0,0,4],[1,0,1,4],[2,0,2,4],[2,6,2,8],[3,1,3,4],[3,6,3,8],[4,6,5,6],[4,7,5,7],[4,8,5,8],[5,0,5,4],[8,6,8,8],[9,6,12,8]]}
["% Different Words"]
["This information can be obtained by entering a transcript of students' narratives into https://wordcounttools.com/ and looking at the 'Extra Word Count Statistics' --> 'Unique Words (percentage)' "]
["INFORMATION",{"$nulls":5},"SUMMARY"]
["Assessment used:",{"$nulls":5},"Group Average: Number of Different Words"]
[{"$nulls":6},{"$f":"C7","v":"Time 1\n% Unique (Different) Words"},{"$f":"D7","v":"Time 2\n% Unique (Different) Words"},{"$f":"Table135[[#Headers],[Difference]]","v":"Difference"}]
["DATA"]
["Other information (e.g. class)","Student","Time 1\n% Unique (Different) Words","Time 2\n% Unique (Different) Words","Difference",null,{"$f":"IFERROR(AVERAGE($C$8:$C$242),\"\")","v":""},{"$f":"IFERROR(AVERAGE($D$8:$D$242),\"\")","v":""},{"$f":"IFERROR(AVERAGE($E$8:$E$242),\"\")","v":0}]
[{"$nulls":4},{"$f":"Table135[[#This Row],[Time 2\n% Unique (Different) Words]]-Table135[[#This Row],[Time 1\n% Unique (Different) Words]]","v":{"v":0,"d":"0.0"}}]
[{"$nulls":4},{"$f":"Table135[[#This Row],[Time 2\n% Unique (Different) Words]]-Table135[[#This Row],[Time 1\n% Unique (Different) Words]]","v":{"v":0,"d":"0.0"}},null,"Comments"]
[{"$nulls":4},{"$f":"Table135[[#This Row],[Time 2\n% Unique (Different) Words]]-Table135[[#This Row],[Time 1\n% Unique (Different) Words]]","v":{"v":0,"d":"0.0"}}]
[{"$nulls":4},{"$f":"Table135[[#This Row],[Time 2\n% Unique (Different) Words]]-Table135[[#This Row],[Time 1\n% Unique (Different) Words]]","v":{"v":0,"d":"0.0"}}]
[{"$nulls":4},{"$f":"Table135[[#This Row],[Time 2\n% Unique (Different) Words]]-Table135[[#This Row],[Time 1\n% Unique (Different) Words]]","v":{"v":0,"d":"0.0"}}]
[{"$nulls":4},{"$f":"Table135[[#This Row],[Time 2\n% Unique (Different) Words]]-Table135[[#This Row],[Time 1\n% Unique (Different) Words]]","v":{"v":0,"d":"0.0"}}]
[{"$nulls":4},{"$f":"Table135[[#This Row],[Time 2\n% Unique (Different) Words]]-Table135[[#This Row],[Time 1\n% Unique (Different) Words]]","v":{"v":0,"d":"0.0"}}]
[{"$nulls":4},{"$f":"Table135[[#This Row],[Time 2\n% Unique (Different) Words]]-Table135[[#This Row],[Time 1\n% Unique (Different) Words]]","v":{"v":0,"d":"0.0"}}]
[{"$nulls":4},{"$f":"Table135[[#This Row],[Time 2\n% Unique (Different) Words]]-Table135[[#This Row],[Time 1\n% Unique (Different) Words]]","v":{"v":0,"d":"0.0"}}]
[{"$nulls":4},{"$f":"Table135[[#This Row],[Time 2\n% Unique (Different) Words]]-Table135[[#This Row],[Time 1\n% Unique (Different) Words]]","v":{"v":0,"d":"0.0"}}]
[{"$nulls":4},{"$f":"Table135[[#This Row],[Time 2\n% Unique (Different) Words]]-Table135[[#This Row],[Time 1\n% Unique (Different) Words]]","v":{"v":0,"d":"0.0"}}]
[{"$nulls":4},{"$f":"Table135[[#This Row],[Time 2\n% Unique (Different) Words]]-Table135[[#This Row],[Time 1\n% Unique (Different) Words]]","v":{"v":0,"d":"0.0"}}]
[{"$nulls":4},{"$f":"Table135[[#This Row],[Time 2\n% Unique (Different) Words]]-Table135[[#This Row],[Time 1\n% Unique (Different) Words]]","v":{"v":0,"d":"0.0"}}]
[{"$nulls":4},{"$f":"Table135[[#This Row],[Time 2\n% Unique (Different) Words]]-Table135[[#This Row],[Time 1\n% Unique (Different) Words]]","v":{"v":0,"d":"0.0"}}]
[{"$nulls":4},{"$f":"Table135[[#This Row],[Time 2\n% Unique (Different) Words]]-Table135[[#This Row],[Time 1\n% Unique (Different) Words]]","v":{"v":0,"d":"0.0"}}]
[{"$nulls":4},{"$f":"Table135[[#This Row],[Time 2\n% Unique (Different) Words]]-Table135[[#This Row],[Time 1\n% Unique (Different) Words]]","v":{"v":0,"d":"0.0"}}]
[{"$nulls":4},{"$f":"Table135[[#This Row],[Time 2\n% Unique (Different) Words]]-Table135[[#This Row],[Time 1\n% Unique (Different) Words]]","v":{"v":0,"d":"0.0"}}]
[{"$nulls":4},{"$f":"Table135[[#This Row],[Time 2\n% Unique (Different) Words]]-Table135[[#This Row],[Time 1\n% Unique (Different) Words]]","v":{"v":0,"d":"0.0"}}]
[{"$nulls":4},{"$f":"Table135[[#This Row],[Time 2\n% Unique (Different) Words]]-Table135[[#This Row],[Time 1\n% Unique (Different) Words]]","v":{"v":0,"d":"0.0"}}]
[{"$nulls":4},{"$f":"Table135[[#This Row],[Time 2\n% Unique (Different) Words]]-Table135[[#This Row],[Time 1\n% Unique (Different) Words]]","v":{"v":0,"d":"0.0"}}]
[{"$nulls":4},{"$f":"Table135[[#This Row],[Time 2\n% Unique (Different) Words]]-Table135[[#This Row],[Time 1\n% Unique (Different) Words]]","v":{"v":0,"d":"0.0"}}]
[{"$nulls":4},{"$f":"Table135[[#This Row],[Time 2\n% Unique (Different) Words]]-Table135[[#This Row],[Time 1\n% Unique (Different) Words]]","v":{"v":0,"d":"0.0"}}]
[{"$nulls":4},{"$f":"Table135[[#This Row],[Time 2\n% Unique (Different) Words]]-Table135[[#This Row],[Time 1\n% Unique (Different) Words]]","v":{"v":0,"d":"0.0"}}]
[{"$nulls":4},{"$f":"Table135[[#This Row],[Time 2\n% Unique (Different) Words]]-Table135[[#This Row],[Time 1\n% Unique (Different) Words]]","v":{"v":0,"d":"0.0"}}]
[{"$nulls":4},{"$f":"Table135[[#This Row],[Time 2\n% Unique (Different) Words]]-Table135[[#This Row],[Time 1\n% Unique (Different) Words]]","v":{"v":0,"d":"0.0"}}]
[{"$nulls":4},{"$f":"Table135[[#This Row],[Time 2\n% Unique (Different) Words]]-Table135[[#This Row],[Time 1\n% Unique (Different) Words]]","v":{"v":0,"d":"0.0"}}]
[{"$nulls":4},{"$f":"Table135[[#This Row],[Time 2\n% Unique (Different) Words]]-Table135[[#This Row],[Time 1\n% Unique (Different) Words]]","v":{"v":0,"d":"0.0"}}]
[{"$nulls":4},{"$f":"Table135[[#This Row],[Time 2\n% Unique (Different) Words]]-Table135[[#This Row],[Time 1\n% Unique (Different) Words]]","v":{"v":0,"d":"0.0"}}]
[{"$nulls":4},{"$f":"Table135[[#This Row],[Time 2\n% Unique (Different) Words]]-Table135[[#This Row],[Time 1\n% Unique (Different) Words]]","v":{"v":0,"d":"0.0"}}]
[{"$nulls":4},{"$f":"Table135[[#This Row],[Time 2\n% Unique (Different) Words]]-Table135[[#This Row],[Time 1\n% Unique (Different) Words]]","v":{"v":0,"d":"0.0"}}]
[{"$nulls":4},{"$f":"Table135[[#This Row],[Time 2\n% Unique (Different) Words]]-Table135[[#This Row],[Time 1\n% Unique (Different) Words]]","v":{"v":0,"d":"0.0"}}]
[{"$nulls":4},{"$f":"Table135[[#This Row],[Time 2\n% Unique (Different) Words]]-Table135[[#This Row],[Time 1\n% Unique (Different) Words]]","v":{"v":0,"d":"0.0"}}]
[{"$nulls":4},{"$f":"Table135[[#This Row],[Time 2\n% Unique (Different) Words]]-Table135[[#This Row],[Time 1\n% Unique (Different) Words]]","v":{"v":0,"d":"0.0"}}]
[{"$nulls":4},{"$f":"Table135[[#This Row],[Time 2\n% Unique (Different) Words]]-Table135[[#This Row],[Time 1\n% Unique (Different) Words]]","v":{"v":0,"d":"0.0"}}]
[{"$nulls":4},{"$f":"Table135[[#This Row],[Time 2\n% Unique (Different) Words]]-Table135[[#This Row],[Time 1\n% Unique (Different) Words]]","v":{"v":0,"d":"0.0"}}]
[{"$nulls":4},{"$f":"Table135[[#This Row],[Time 2\n% Unique (Different) Words]]-Table135[[#This Row],[Time 1\n% Unique (Different) Words]]","v":{"v":0,"d":"0.0"}}]
[{"$nulls":4},{"$f":"Table135[[#This Row],[Time 2\n% Unique (Different) Words]]-Table135[[#This Row],[Time 1\n% Unique (Different) Words]]","v":{"v":0,"d":"0.0"}}]
[{"$nulls":4},{"$f":"Table135[[#This Row],[Time 2\n% Unique (Different) Words]]-Table135[[#This Row],[Time 1\n% Unique (Different) Words]]","v":{"v":0,"d":"0.0"}}]
[{"$nulls":4},{"$f":"Table135[[#This Row],[Time 2\n% Unique (Different) Words]]-Table135[[#This Row],[Time 1\n% Unique (Different) Words]]","v":{"v":0,"d":"0.0"}}]
[{"$nulls":4},{"$f":"Table135[[#This Row],[Time 2\n% Unique (Different) Words]]-Table135[[#This Row],[Time 1\n% Unique (Different) Words]]","v":{"v":0,"d":"0.0"}}]
[{"$nulls":4},{"$f":"Table135[[#This Row],[Time 2\n% Unique (Different) Words]]-Table135[[#This Row],[Time 1\n% Unique (Different) Words]]","v":{"v":0,"d":"0.0"}}]
[{"$nulls":4},{"$f":"Table135[[#This Row],[Time 2\n% Unique (Different) Words]]-Table135[[#This Row],[Time 1\n% Unique (Different) Words]]","v":{"v":0,"d":"0.0"}}]
[{"$nulls":4},{"$f":"Table135[[#This Row],[Time 2\n% Unique (Different) Words]]-Table135[[#This Row],[Time 1\n% Unique (Different) Words]]","v":{"v":0,"d":"0.0"}}]
[{"$nulls":4},{"$f":"Table135[[#This Row],[Time 2\n% Unique (Different) Words]]-Table135[[#This Row],[Time 1\n% Unique (Different) Words]]","v":{"v":0,"d":"0.0"}}]
[{"$nulls":4},{"$f":"Table135[[#This Row],[Time 2\n% Unique (Different) Words]]-Table135[[#This Row],[Time 1\n% Unique (Different) Words]]","v":{"v":0,"d":"0.0"}}]
[{"$nulls":4},{"$f":"Table135[[#This Row],[Time 2\n% Unique (Different) Words]]-Table135[[#This Row],[Time 1\n% Unique (Different) Words]]","v":{"v":0,"d":"0.0"}}]
[{"$nulls":4},{"$f":"Table135[[#This Row],[Time 2\n% Unique (Different) Words]]-Table135[[#This Row],[Time 1\n% Unique (Different) Words]]","v":{"v":0,"d":"0.0"}}]
[{"$nulls":4},{"$f":"Table135[[#This Row],[Time 2\n% Unique (Different) Words]]-Table135[[#This Row],[Time 1\n% Unique (Different) Words]]","v":{"v":0,"d":"0.0"}}]
[{"$nulls":4},{"$f":"Table135[[#This Row],[Time 2\n% Unique (Different) Words]]-Table135[[#This Row],[Time 1\n% Unique (Different) Words]]","v":{"v":0,"d":"0.0"}}]
[{"$nulls":4},{"$f":"Table135[[#This Row],[Time 2\n% Unique (Different) Words]]-Table135[[#This Row],[Time 1\n% Unique (Different) Words]]","v":{"v":0,"d":"0.0"}}]
[{"$nulls":4},{"$f":"Table135[[#This Row],[Time 2\n% Unique (Different) Words]]-Table135[[#This Row],[Time 1\n% Unique (Different) Words]]","v":{"v":0,"d":"0.0"}}]
[{"$nulls":4},{"$f":"Table135[[#This Row],[Time 2\n% Unique (Different) Words]]-Table135[[#This Row],[Time 1\n% Unique (Different) Words]]","v":{"v":0,"d":"0.0"}}]
[{"$nulls":4},{"$f":"Table135[[#This Row],[Time 2\n% Unique (Different) Words]]-Table135[[#This Row],[Time 1\n% Unique (Different) Words]]","v":{"v":0,"d":"0.0"}}]
[{"$nulls":4},{"$f":"Table135[[#This Row],[Time 2\n% Unique (Different) Words]]-Table135[[#This Row],[Time 1\n% Unique (Different) Words]]","v":{"v":0,"d":"0.0"}}]
[{"$nulls":4},{"$f":"Table135[[#This Row],[Time 2\n% Unique (Different) Words]]-Table135[[#This Row],[Time 1\n% Unique (Different) Words]]","v":{"v":0,"d":"0.0"}}]
[{"$nulls":4},{"$f":"Table135[[#This Row],[Time 2\n% Unique (Different) Words]]-Table135[[#This Row],[Time 1\n% Unique (Different) Words]]","v":{"v":0,"d":"0.0"}}]
[{"$nulls":4},{"$f":"Table135[[#This Row],[Time 2\n% Unique (Different) Words]]-Table135[[#This Row],[Time 1\n% Unique (Different) Words]]","v":{"v":0,"d":"0.0"}}]
[{"$nulls":4},{"$f":"Table135[[#This Row],[Time 2\n% Unique (Different) Words]]-Table135[[#This Row],[Time 1\n% Unique (Different) Words]]","v":{"v":0,"d":"0.0"}}]
[{"$nulls":4},{"$f":"Table135[[#This Row],[Time 2\n% Unique (Different) Words]]-Table135[[#This Row],[Time 1\n% Unique (Different) Words]]","v":{"v":0,"d":"0.0"}}]
[{"$nulls":4},{"$f":"Table135[[#This Row],[Time 2\n% Unique (Different) Words]]-Table135[[#This Row],[Time 1\n% Unique (Different) Words]]","v":{"v":0,"d":"0.0"}}]
[{"$nulls":4},{"$f":"Table135[[#This Row],[Time 2\n% Unique (Different) Words]]-Table135[[#This Row],[Time 1\n% Unique (Different) Words]]","v":{"v":0,"d":"0.0"}}]
[{"$nulls":4},{"$f":"Table135[[#This Row],[Time 2\n% Unique (Different) Words]]-Table135[[#This Row],[Time 1\n% Unique (Different) Words]]","v":{"v":0,"d":"0.0"}}]
[{"$nulls":4},{"$f":"Table135[[#This Row],[Time 2\n% Unique (Different) Words]]-Table135[[#This Row],[Time 1\n% Unique (Different) Words]]","v":{"v":0,"d":"0.0"}}]
[{"$nulls":4},{"$f":"Table135[[#This Row],[Time 2\n% Unique (Different) Words]]-Table135[[#This Row],[Time 1\n% Unique (Different) Words]]","v":{"v":0,"d":"0.0"}}]
[{"$nulls":4},{"$f":"Table135[[#This Row],[Time 2\n% Unique (Different) Words]]-Table135[[#This Row],[Time 1\n% Unique (Different) Words]]","v":{"v":0,"d":"0.0"}}]
[{"$nulls":4},{"$f":"Table135[[#This Row],[Time 2\n% Unique (Different) Words]]-Table135[[#This Row],[Time 1\n% Unique (Different) Words]]","v":{"v":0,"d":"0.0"}}]
[{"$nulls":4},{"$f":"Table135[[#This Row],[Time 2\n% Unique (Different) Words]]-Table135[[#This Row],[Time 1\n% Unique (Different) Words]]","v":{"v":0,"d":"0.0"}}]
[{"$nulls":4},{"$f":"Table135[[#This Row],[Time 2\n% Unique (Different) Words]]-Table135[[#This Row],[Time 1\n% Unique (Different) Words]]","v":{"v":0,"d":"0.0"}}]
[{"$nulls":4},{"$f":"Table135[[#This Row],[Time 2\n% Unique (Different) Words]]-Table135[[#This Row],[Time 1\n% Unique (Different) Words]]","v":{"v":0,"d":"0.0"}}]
[{"$nulls":4},{"$f":"Table135[[#This Row],[Time 2\n% Unique (Different) Words]]-Table135[[#This Row],[Time 1\n% Unique (Different) Words]]","v":{"v":0,"d":"0.0"}}]
[{"$nulls":4},{"$f":"Table135[[#This Row],[Time 2\n% Unique (Different) Words]]-Table135[[#This Row],[Time 1\n% Unique (Different) Words]]","v":{"v":0,"d":"0.0"}}]
[{"$nulls":4},{"$f":"Table135[[#This Row],[Time 2\n% Unique (Different) Words]]-Table135[[#This Row],[Time 1\n% Unique (Different) Words]]","v":{"v":0,"d":"0.0"}}]
[{"$nulls":4},{"$f":"Table135[[#This Row],[Time 2\n% Unique (Different) Words]]-Table135[[#This Row],[Time 1\n% Unique (Different) Words]]","v":{"v":0,"d":"0.0"}}]
[{"$nulls":4},{"$f":"Table135[[#This Row],[Time 2\n% Unique (Different) Words]]-Table135[[#This Row],[Time 1\n% Unique (Different) Words]]","v":{"v":0,"d":"0.0"}}]
[{"$nulls":4},{"$f":"Table135[[#This Row],[Time 2\n% Unique (Different) Words]]-Table135[[#This Row],[Time 1\n% Unique (Different) Words]]","v":{"v":0,"d":"0.0"}}]
[{"$nulls":4},{"$f":"Table135[[#This Row],[Time 2\n% Unique (Different) Words]]-Table135[[#This Row],[Time 1\n% Unique (Different) Words]]","v":{"v":0,"d":"0.0"}}]
[{"$nulls":4},{"$f":"Table135[[#This Row],[Time 2\n% Unique (Different) Words]]-Table135[[#This Row],[Time 1\n% Unique (Different) Words]]","v":{"v":0,"d":"0.0"}}]
[{"$nulls":4},{"$f":"Table135[[#This Row],[Time 2\n% Unique (Different) Words]]-Table135[[#This Row],[Time 1\n% Unique (Different) Words]]","v":{"v":0,"d":"0.0"}}]
[{"$nulls":4},{"$f":"Table135[[#This Row],[Time 2\n% Unique (Different) Words]]-Table135[[#This Row],[Time 1\n% Unique (Different) Words]]","v":{"v":0,"d":"0.0"}}]
[{"$nulls":4},{"$f":"Table135[[#This Row],[Time 2\n% Unique (Different) Words]]-Table135[[#This Row],[Time 1\n% Unique (Different) Words]]","v":{"v":0,"d":"0.0"}}]
[{"$nulls":4},{"$f":"Table135[[#This Row],[Time 2\n% Unique (Different) Words]]-Table135[[#This Row],[Time 1\n% Unique (Different) Words]]","v":{"v":0,"d":"0.0"}}]
[{"$nulls":4},{"$f":"Table135[[#This Row],[Time 2\n% Unique (Different) Words]]-Table135[[#This Row],[Time 1\n% Unique (Different) Words]]","v":{"v":0,"d":"0.0"}}]
[{"$nulls":4},{"$f":"Table135[[#This Row],[Time 2\n% Unique (Different) Words]]-Table135[[#This Row],[Time 1\n% Unique (Different) Words]]","v":{"v":0,"d":"0.0"}}]
[{"$nulls":4},{"$f":"Table135[[#This Row],[Time 2\n% Unique (Different) Words]]-Table135[[#This Row],[Time 1\n% Unique (Different) Words]]","v":{"v":0,"d":"0.0"}}]
[{"$nulls":4},{"$f":"Table135[[#This Row],[Time 2\n% Unique (Different) Words]]-Table135[[#This Row],[Time 1\n% Unique (Different) Words]]","v":{"v":0,"d":"0.0"}}]
[{"$nulls":4},{"$f":"Table135[[#This Row],[Time 2\n% Unique (Different) Words]]-Table135[[#This Row],[Time 1\n% Unique (Different) Words]]","v":{"v":0,"d":"0.0"}}]
[{"$nulls":4},{"$f":"Table135[[#This Row],[Time 2\n% Unique (Different) Words]]-Table135[[#This Row],[Time 1\n% Unique (Different) Words]]","v":{"v":0,"d":"0.0"}}]
[{"$nulls":4},{"$f":"Table135[[#This Row],[Time 2\n% Unique (Different) Words]]-Table135[[#This Row],[Time 1\n% Unique (Different) Words]]","v":{"v":0,"d":"0.0"}}]
[{"$nulls":4},{"$f":"Table135[[#This Row],[Time 2\n% Unique (Different) Words]]-Table135[[#This Row],[Time 1\n% Unique (Different) Words]]","v":{"v":0,"d":"0.0"}}]
[{"$nulls":4},{"$f":"Table135[[#This Row],[Time 2\n% Unique (Different) Words]]-Table135[[#This Row],[Time 1\n% Unique (Different) Words]]","v":{"v":0,"d":"0.0"}}]
[{"$nulls":4},{"$f":"Table135[[#This Row],[Time 2\n% Unique (Different) Words]]-Table135[[#This Row],[Time 1\n% Unique (Different) Words]]","v":{"v":0,"d":"0.0"}}]
[{"$nulls":4},{"$f":"Table135[[#This Row],[Time 2\n% Unique (Different) Words]]-Table135[[#This Row],[Time 1\n% Unique (Different) Words]]","v":{"v":0,"d":"0.0"}}]
[{"$nulls":4},{"$f":"Table135[[#This Row],[Time 2\n% Unique (Different) Words]]-Table135[[#This Row],[Time 1\n% Unique (Different) Words]]","v":{"v":0,"d":"0.0"}}]
[{"$nulls":4},{"$f":"Table135[[#This Row],[Time 2\n% Unique (Different) Words]]-Table135[[#This Row],[Time 1\n% Unique (Different) Words]]","v":{"v":0,"d":"0.0"}}]
[{"$nulls":4},{"$f":"Table135[[#This Row],[Time 2\n% Unique (Different) Words]]-Table135[[#This Row],[Time 1\n% Unique (Different) Words]]","v":{"v":0,"d":"0.0"}}]
[{"$nulls":4},{"$f":"Table135[[#This Row],[Time 2\n% Unique (Different) Words]]-Table135[[#This Row],[Time 1\n% Unique (Different) Words]]","v":{"v":0,"d":"0.0"}}]
[{"$nulls":4},{"$f":"Table135[[#This Row],[Time 2\n% Unique (Different) Words]]-Table135[[#This Row],[Time 1\n% Unique (Different) Words]]","v":{"v":0,"d":"0.0"}}]
[{"$nulls":4},{"$f":"Table135[[#This Row],[Time 2\n% Unique (Different) Words]]-Table135[[#This Row],[Time 1\n% Unique (Different) Words]]","v":{"v":0,"d":"0.0"}}]
[{"$nulls":4},{"$f":"Table135[[#This Row],[Time 2\n% Unique (Different) Words]]-Table135[[#This Row],[Time 1\n% Unique (Different) Words]]","v":{"v":0,"d":"0.0"}}]
[{"$nulls":4},{"$f":"Table135[[#This Row],[Time 2\n% Unique (Different) Words]]-Table135[[#This Row],[Time 1\n% Unique (Different) Words]]","v":{"v":0,"d":"0.0"}}]
[{"$nulls":4},{"$f":"Table135[[#This Row],[Time 2\n% Unique (Different) Words]]-Table135[[#This Row],[Time 1\n% Unique (Different) Words]]","v":{"v":0,"d":"0.0"}}]
[{"$nulls":4},{"$f":"Table135[[#This Row],[Time 2\n% Unique (Different) Words]]-Table135[[#This Row],[Time 1\n% Unique (Different) Words]]","v":{"v":0,"d":"0.0"}}]
[{"$nulls":4},{"$f":"Table135[[#This Row],[Time 2\n% Unique (Different) Words]]-Table135[[#This Row],[Time 1\n% Unique (Different) Words]]","v":{"v":0,"d":"0.0"}}]
[{"$nulls":4},{"$f":"Table135[[#This Row],[Time 2\n% Unique (Different) Words]]-Table135[[#This Row],[Time 1\n% Unique (Different) Words]]","v":{"v":0,"d":"0.0"}}]
[{"$nulls":4},{"$f":"Table135[[#This Row],[Time 2\n% Unique (Different) Words]]-Table135[[#This Row],[Time 1\n% Unique (Different) Words]]","v":{"v":0,"d":"0.0"}}]
[{"$nulls":4},{"$f":"Table135[[#This Row],[Time 2\n% Unique (Different) Words]]-Table135[[#This Row],[Time 1\n% Unique (Different) Words]]","v":{"v":0,"d":"0.0"}}]
[{"$nulls":4},{"$f":"Table135[[#This Row],[Time 2\n% Unique (Different) Words]]-Table135[[#This Row],[Time 1\n% Unique (Different) Words]]","v":{"v":0,"d":"0.0"}}]
[{"$nulls":4},{"$f":"Table135[[#This Row],[Time 2\n% Unique (Different) Words]]-Table135[[#This Row],[Time 1\n% Unique (Different) Words]]","v":{"v":0,"d":"0.0"}}]
[{"$nulls":4},{"$f":"Table135[[#This Row],[Time 2\n% Unique (Different) Words]]-Table135[[#This Row],[Time 1\n% Unique (Different) Words]]","v":{"v":0,"d":"0.0"}}]
[{"$nulls":4},{"$f":"Table135[[#This Row],[Time 2\n% Unique (Different) Words]]-Table135[[#This Row],[Time 1\n% Unique (Different) Words]]","v":{"v":0,"d":"0.0"}}]
[{"$nulls":4},{"$f":"Table135[[#This Row],[Time 2\n% Unique (Different) Words]]-Table135[[#This Row],[Time 1\n% Unique (Different) Words]]","v":{"v":0,"d":"0.0"}}]
[{"$nulls":4},{"$f":"Table135[[#This Row],[Time 2\n% Unique (Different) Words]]-Table135[[#This Row],[Time 1\n% Unique (Different) Words]]","v":{"v":0,"d":"0.0"}}]
[{"$nulls":4},{"$f":"Table135[[#This Row],[Time 2\n% Unique (Different) Words]]-Table135[[#This Row],[Time 1\n% Unique (Different) Words]]","v":{"v":0,"d":"0.0"}}]
[{"$nulls":4},{"$f":"Table135[[#This Row],[Time 2\n% Unique (Different) Words]]-Table135[[#This Row],[Time 1\n% Unique (Different) Words]]","v":{"v":0,"d":"0.0"}}]
[{"$nulls":4},{"$f":"Table135[[#This Row],[Time 2\n% Unique (Different) Words]]-Table135[[#This Row],[Time 1\n% Unique (Different) Words]]","v":{"v":0,"d":"0.0"}}]
[{"$nulls":4},{"$f":"Table135[[#This Row],[Time 2\n% Unique (Different) Words]]-Table135[[#This Row],[Time 1\n% Unique (Different) Words]]","v":{"v":0,"d":"0.0"}}]
[{"$nulls":4},{"$f":"Table135[[#This Row],[Time 2\n% Unique (Different) Words]]-Table135[[#This Row],[Time 1\n% Unique (Different) Words]]","v":{"v":0,"d":"0.0"}}]
[{"$nulls":4},{"$f":"Table135[[#This Row],[Time 2\n% Unique (Different) Words]]-Table135[[#This Row],[Time 1\n% Unique (Different) Words]]","v":{"v":0,"d":"0.0"}}]
[{"$nulls":4},{"$f":"Table135[[#This Row],[Time 2\n% Unique (Different) Words]]-Table135[[#This Row],[Time 1\n% Unique (Different) Words]]","v":{"v":0,"d":"0.0"}}]
[{"$nulls":4},{"$f":"Table135[[#This Row],[Time 2\n% Unique (Different) Words]]-Table135[[#This Row],[Time 1\n% Unique (Different) Words]]","v":{"v":0,"d":"0.0"}}]
[{"$nulls":4},{"$f":"Table135[[#This Row],[Time 2\n% Unique (Different) Words]]-Table135[[#This Row],[Time 1\n% Unique (Different) Words]]","v":{"v":0,"d":"0.0"}}]
[{"$nulls":4},{"$f":"Table135[[#This Row],[Time 2\n% Unique (Different) Words]]-Table135[[#This Row],[Time 1\n% Unique (Different) Words]]","v":{"v":0,"d":"0.0"}}]
[{"$nulls":4},{"$f":"Table135[[#This Row],[Time 2\n% Unique (Different) Words]]-Table135[[#This Row],[Time 1\n% Unique (Different) Words]]","v":{"v":0,"d":"0.0"}}]
[{"$nulls":4},{"$f":"Table135[[#This Row],[Time 2\n% Unique (Different) Words]]-Table135[[#This Row],[Time 1\n% Unique (Different) Words]]","v":{"v":0,"d":"0.0"}}]
[{"$nulls":4},{"$f":"Table135[[#This Row],[Time 2\n% Unique (Different) Words]]-Table135[[#This Row],[Time 1\n% Unique (Different) Words]]","v":{"v":0,"d":"0.0"}}]
[{"$nulls":4},{"$f":"Table135[[#This Row],[Time 2\n% Unique (Different) Words]]-Table135[[#This Row],[Time 1\n% Unique (Different) Words]]","v":{"v":0,"d":"0.0"}}]
[{"$nulls":4},{"$f":"Table135[[#This Row],[Time 2\n% Unique (Different) Words]]-Table135[[#This Row],[Time 1\n% Unique (Different) Words]]","v":{"v":0,"d":"0.0"}}]
[{"$nulls":4},{"$f":"Table135[[#This Row],[Time 2\n% Unique (Different) Words]]-Table135[[#This Row],[Time 1\n% Unique (Different) Words]]","v":{"v":0,"d":"0.0"}}]
[{"$nulls":4},{"$f":"Table135[[#This Row],[Time 2\n% Unique (Different) Words]]-Table135[[#This Row],[Time 1\n% Unique (Different) Words]]","v":{"v":0,"d":"0.0"}}]
[{"$nulls":4},{"$f":"Table135[[#This Row],[Time 2\n% Unique (Different) Words]]-Table135[[#This Row],[Time 1\n% Unique (Different) Words]]","v":{"v":0,"d":"0.0"}}]
[{"$nulls":4},{"$f":"Table135[[#This Row],[Time 2\n% Unique (Different) Words]]-Table135[[#This Row],[Time 1\n% Unique (Different) Words]]","v":{"v":0,"d":"0.0"}}]
[{"$nulls":4},{"$f":"Table135[[#This Row],[Time 2\n% Unique (Different) Words]]-Table135[[#This Row],[Time 1\n% Unique (Different) Words]]","v":{"v":0,"d":"0.0"}}]
[{"$nulls":4},{"$f":"Table135[[#This Row],[Time 2\n% Unique (Different) Words]]-Table135[[#This Row],[Time 1\n% Unique (Different) Words]]","v":{"v":0,"d":"0.0"}}]
[{"$nulls":4},{"$f":"Table135[[#This Row],[Time 2\n% Unique (Different) Words]]-Table135[[#This Row],[Time 1\n% Unique (Different) Words]]","v":{"v":0,"d":"0.0"}}]
[{"$nulls":4},{"$f":"Table135[[#This Row],[Time 2\n% Unique (Different) Words]]-Table135[[#This Row],[Time 1\n% Unique (Different) Words]]","v":{"v":0,"d":"0.0"}}]
[{"$nulls":4},{"$f":"Table135[[#This Row],[Time 2\n% Unique (Different) Words]]-Table135[[#This Row],[Time 1\n% Unique (Different) Words]]","v":{"v":0,"d":"0.0"}}]
[{"$nulls":4},{"$f":"Table135[[#This Row],[Time 2\n% Unique (Different) Words]]-Table135[[#This Row],[Time 1\n% Unique (Different) Words]]","v":{"v":0,"d":"0.0"}}]
[{"$nulls":4},{"$f":"Table135[[#This Row],[Time 2\n% Unique (Different) Words]]-Table135[[#This Row],[Time 1\n% Unique (Different) Words]]","v":{"v":0,"d":"0.0"}}]
[{"$nulls":4},{"$f":"Table135[[#This Row],[Time 2\n% Unique (Different) Words]]-Table135[[#This Row],[Time 1\n% Unique (Different) Words]]","v":{"v":0,"d":"0.0"}}]
[{"$nulls":4},{"$f":"Table135[[#This Row],[Time 2\n% Unique (Different) Words]]-Table135[[#This Row],[Time 1\n% Unique (Different) Words]]","v":{"v":0,"d":"0.0"}}]
[{"$nulls":4},{"$f":"Table135[[#This Row],[Time 2\n% Unique (Different) Words]]-Table135[[#This Row],[Time 1\n% Unique (Different) Words]]","v":{"v":0,"d":"0.0"}}]
[{"$nulls":4},{"$f":"Table135[[#This Row],[Time 2\n% Unique (Different) Words]]-Table135[[#This Row],[Time 1\n% Unique (Different) Words]]","v":{"v":0,"d":"0.0"}}]
[{"$nulls":4},{"$f":"Table135[[#This Row],[Time 2\n% Unique (Different) Words]]-Table135[[#This Row],[Time 1\n% Unique (Different) Words]]","v":{"v":0,"d":"0.0"}}]
[{"$nulls":4},{"$f":"Table135[[#This Row],[Time 2\n% Unique (Different) Words]]-Table135[[#This Row],[Time 1\n% Unique (Different) Words]]","v":{"v":0,"d":"0.0"}}]
[{"$nulls":4},{"$f":"Table135[[#This Row],[Time 2\n% Unique (Different) Words]]-Table135[[#This Row],[Time 1\n% Unique (Different) Words]]","v":{"v":0,"d":"0.0"}}]
[{"$nulls":4},{"$f":"Table135[[#This Row],[Time 2\n% Unique (Different) Words]]-Table135[[#This Row],[Time 1\n% Unique (Different) Words]]","v":{"v":0,"d":"0.0"}}]
[{"$nulls":4},{"$f":"Table135[[#This Row],[Time 2\n% Unique (Different) Words]]-Table135[[#This Row],[Time 1\n% Unique (Different) Words]]","v":{"v":0,"d":"0.0"}}]
[{"$nulls":4},{"$f":"Table135[[#This Row],[Time 2\n% Unique (Different) Words]]-Table135[[#This Row],[Time 1\n% Unique (Different) Words]]","v":{"v":0,"d":"0.0"}}]
[{"$nulls":4},{"$f":"Table135[[#This Row],[Time 2\n% Unique (Different) Words]]-Table135[[#This Row],[Time 1\n% Unique (Different) Words]]","v":{"v":0,"d":"0.0"}}]
[{"$nulls":4},{"$f":"Table135[[#This Row],[Time 2\n% Unique (Different) Words]]-Table135[[#This Row],[Time 1\n% Unique (Different) Words]]","v":{"v":0,"d":"0.0"}}]
[{"$nulls":4},{"$f":"Table135[[#This Row],[Time 2\n% Unique (Different) Words]]-Table135[[#This Row],[Time 1\n% Unique (Different) Words]]","v":{"v":0,"d":"0.0"}}]
[{"$nulls":4},{"$f":"Table135[[#This Row],[Time 2\n% Unique (Different) Words]]-Table135[[#This Row],[Time 1\n% Unique (Different) Words]]","v":{"v":0,"d":"0.0"}}]
[{"$nulls":4},{"$f":"Table135[[#This Row],[Time 2\n% Unique (Different) Words]]-Table135[[#This Row],[Time 1\n% Unique (Different) Words]]","v":{"v":0,"d":"0.0"}}]
[{"$nulls":4},{"$f":"Table135[[#This Row],[Time 2\n% Unique (Different) Words]]-Table135[[#This Row],[Time 1\n% Unique (Different) Words]]","v":{"v":0,"d":"0.0"}}]
[{"$nulls":4},{"$f":"Table135[[#This Row],[Time 2\n% Unique (Different) Words]]-Table135[[#This Row],[Time 1\n% Unique (Different) Words]]","v":{"v":0,"d":"0.0"}}]
[{"$nulls":4},{"$f":"Table135[[#This Row],[Time 2\n% Unique (Different) Words]]-Table135[[#This Row],[Time 1\n% Unique (Different) Words]]","v":{"v":0,"d":"0.0"}}]
[{"$nulls":4},{"$f":"Table135[[#This Row],[Time 2\n% Unique (Different) Words]]-Table135[[#This Row],[Time 1\n% Unique (Different) Words]]","v":{"v":0,"d":"0.0"}}]
[{"$nulls":4},{"$f":"Table135[[#This Row],[Time 2\n% Unique (Different) Words]]-Table135[[#This Row],[Time 1\n% Unique (Different) Words]]","v":{"v":0,"d":"0.0"}}]
[{"$nulls":4},{"$f":"Table135[[#This Row],[Time 2\n% Unique (Different) Words]]-Table135[[#This Row],[Time 1\n% Unique (Different) Words]]","v":{"v":0,"d":"0.0"}}]
[{"$nulls":4},{"$f":"Table135[[#This Row],[Time 2\n% Unique (Different) Words]]-Table135[[#This Row],[Time 1\n% Unique (Different) Words]]","v":{"v":0,"d":"0.0"}}]
[{"$nulls":4},{"$f":"Table135[[#This Row],[Time 2\n% Unique (Different) Words]]-Table135[[#This Row],[Time 1\n% Unique (Different) Words]]","v":{"v":0,"d":"0.0"}}]
[{"$nulls":4},{"$f":"Table135[[#This Row],[Time 2\n% Unique (Different) Words]]-Table135[[#This Row],[Time 1\n% Unique (Different) Words]]","v":{"v":0,"d":"0.0"}}]
[{"$nulls":4},{"$f":"Table135[[#This Row],[Time 2\n% Unique (Different) Words]]-Table135[[#This Row],[Time 1\n% Unique (Different) Words]]","v":{"v":0,"d":"0.0"}}]
[{"$nulls":4},{"$f":"Table135[[#This Row],[Time 2\n% Unique (Different) Words]]-Table135[[#This Row],[Time 1\n% Unique (Different) Words]]","v":{"v":0,"d":"0.0"}}]
[{"$nulls":4},{"$f":"Table135[[#This Row],[Time 2\n% Unique (Different) Words]]-Table135[[#This Row],[Time 1\n% Unique (Different) Words]]","v":{"v":0,"d":"0.0"}}]
[{"$nulls":4},{"$f":"Table135[[#This Row],[Time 2\n% Unique (Different) Words]]-Table135[[#This Row],[Time 1\n% Unique (Different) Words]]","v":{"v":0,"d":"0.0"}}]
[{"$nulls":4},{"$f":"Table135[[#This Row],[Time 2\n% Unique (Different) Words]]-Table135[[#This Row],[Time 1\n% Unique (Different) Words]]","v":{"v":0,"d":"0.0"}}]
[{"$nulls":4},{"$f":"Table135[[#This Row],[Time 2\n% Unique (Different) Words]]-Table135[[#This Row],[Time 1\n% Unique (Different) Words]]","v":{"v":0,"d":"0.0"}}]
[{"$nulls":4},{"$f":"Table135[[#This Row],[Time 2\n% Unique (Different) Words]]-Table135[[#This Row],[Time 1\n% Unique (Different) Words]]","v":{"v":0,"d":"0.0"}}]
[{"$nulls":4},{"$f":"Table135[[#This Row],[Time 2\n% Unique (Different) Words]]-Table135[[#This Row],[Time 1\n% Unique (Different) Words]]","v":{"v":0,"d":"0.0"}}]
[{"$nulls":4},{"$f":"Table135[[#This Row],[Time 2\n% Unique (Different) Words]]-Table135[[#This Row],[Time 1\n% Unique (Different) Words]]","v":{"v":0,"d":"0.0"}}]
[{"$nulls":4},{"$f":"Table135[[#This Row],[Time 2\n% Unique (Different) Words]]-Table135[[#This Row],[Time 1\n% Unique (Different) Words]]","v":{"v":0,"d":"0.0"}}]
[{"$nulls":4},{"$f":"Table135[[#This Row],[Time 2\n% Unique (Different) Words]]-Table135[[#This Row],[Time 1\n% Unique (Different) Words]]","v":{"v":0,"d":"0.0"}}]
[{"$nulls":4},{"$f":"Table135[[#This Row],[Time 2\n% Unique (Different) Words]]-Table135[[#This Row],[Time 1\n% Unique (Different) Words]]","v":{"v":0,"d":"0.0"}}]
[{"$nulls":4},{"$f":"Table135[[#This Row],[Time 2\n% Unique (Different) Words]]-Table135[[#This Row],[Time 1\n% Unique (Different) Words]]","v":{"v":0,"d":"0.0"}}]
[{"$nulls":4},{"$f":"Table135[[#This Row],[Time 2\n% Unique (Different) Words]]-Table135[[#This Row],[Time 1\n% Unique (Different) Words]]","v":{"v":0,"d":"0.0"}}]
[{"$nulls":4},{"$f":"Table135[[#This Row],[Time 2\n% Unique (Different) Words]]-Table135[[#This Row],[Time 1\n% Unique (Different) Words]]","v":{"v":0,"d":"0.0"}}]
[{"$nulls":4},{"$f":"Table135[[#This Row],[Time 2\n% Unique (Different) Words]]-Table135[[#This Row],[Time 1\n% Unique (Different) Words]]","v":{"v":0,"d":"0.0"}}]
[{"$nulls":4},{"$f":"Table135[[#This Row],[Time 2\n% Unique (Different) Words]]-Table135[[#This Row],[Time 1\n% Unique (Different) Words]]","v":{"v":0,"d":"0.0"}}]
[{"$nulls":4},{"$f":"Table135[[#This Row],[Time 2\n% Unique (Different) Words]]-Table135[[#This Row],[Time 1\n% Unique (Different) Words]]","v":{"v":0,"d":"0.0"}}]
[{"$nulls":4},{"$f":"Table135[[#This Row],[Time 2\n% Unique (Different) Words]]-Table135[[#This Row],[Time 1\n% Unique (Different) Words]]","v":{"v":0,"d":"0.0"}}]
[{"$nulls":4},{"$f":"Table135[[#This Row],[Time 2\n% Unique (Different) Words]]-Table135[[#This Row],[Time 1\n% Unique (Different) Words]]","v":{"v":0,"d":"0.0"}}]
[{"$nulls":4},{"$f":"Table135[[#This Row],[Time 2\n% Unique (Different) Words]]-Table135[[#This Row],[Time 1\n% Unique (Different) Words]]","v":{"v":0,"d":"0.0"}}]
[{"$nulls":4},{"$f":"Table135[[#This Row],[Time 2\n% Unique (Different) Words]]-Table135[[#This Row],[Time 1\n% Unique (Different) Words]]","v":{"v":0,"d":"0.0"}}]
[{"$nulls":4},{"$f":"Table135[[#This Row],[Time 2\n% Unique (Different) Words]]-Table135[[#This Row],[Time 1\n% Unique (Different) Words]]","v":{"v":0,"d":"0.0"}}]
[{"$nulls":4},{"$f":"Table135[[#This Row],[Time 2\n% Unique (Different) Words]]-Table135[[#This Row],[Time 1\n% Unique (Different) Words]]","v":{"v":0,"d":"0.0"}}]
[{"$nulls":4},{"$f":"Table135[[#This Row],[Time 2\n% Unique (Different) Words]]-Table135[[#This Row],[Time 1\n% Unique (Different) Words]]","v":{"v":0,"d":"0.0"}}]
[{"$nulls":4},{"$f":"Table135[[#This Row],[Time 2\n% Unique (Different) Words]]-Table135[[#This Row],[Time 1\n% Unique (Different) Words]]","v":{"v":0,"d":"0.0"}}]
[{"$nulls":4},{"$f":"Table135[[#This Row],[Time 2\n% Unique (Different) Words]]-Table135[[#This Row],[Time 1\n% Unique (Different) Words]]","v":{"v":0,"d":"0.0"}}]
[{"$nulls":4},{"$f":"Table135[[#This Row],[Time 2\n% Unique (Different) Words]]-Table135[[#This Row],[Time 1\n% Unique (Different) Words]]","v":{"v":0,"d":"0.0"}}]
[{"$nulls":4},{"$f":"Table135[[#This Row],[Time 2\n% Unique (Different) Words]]-Table135[[#This Row],[Time 1\n% Unique (Different) Words]]","v":{"v":0,"d":"0.0"}}]
[{"$nulls":4},{"$f":"Table135[[#This Row],[Time 2\n% Unique (Different) Words]]-Table135[[#This Row],[Time 1\n% Unique (Different) Words]]","v":{"v":0,"d":"0.0"}}]
[{"$nulls":4},{"$f":"Table135[[#This Row],[Time 2\n% Unique (Different) Words]]-Table135[[#This Row],[Time 1\n% Unique (Different) Words]]","v":{"v":0,"d":"0.0"}}]
[{"$nulls":4},{"$f":"Table135[[#This Row],[Time 2\n% Unique (Different) Words]]-Table135[[#This Row],[Time 1\n% Unique (Different) Words]]","v":{"v":0,"d":"0.0"}}]
[{"$nulls":4},{"$f":"Table135[[#This Row],[Time 2\n% Unique (Different) Words]]-Table135[[#This Row],[Time 1\n% Unique (Different) Words]]","v":{"v":0,"d":"0.0"}}]
[{"$nulls":4},{"$f":"Table135[[#This Row],[Time 2\n% Unique (Different) Words]]-Table135[[#This Row],[Time 1\n% Unique (Different) Words]]","v":{"v":0,"d":"0.0"}}]
[{"$nulls":4},{"$f":"Table135[[#This Row],[Time 2\n% Unique (Different) Words]]-Table135[[#This Row],[Time 1\n% Unique (Different) Words]]","v":{"v":0,"d":"0.0"}}]
[{"$nulls":4},{"$f":"Table135[[#This Row],[Time 2\n% Unique (Different) Words]]-Table135[[#This Row],[Time 1\n% Unique (Different) Words]]","v":{"v":0,"d":"0.0"}}]
[{"$nulls":4},{"$f":"Table135[[#This Row],[Time 2\n% Unique (Different) Words]]-Table135[[#This Row],[Time 1\n% Unique (Different) Words]]","v":{"v":0,"d":"0.0"}}]
[{"$nulls":4},{"$f":"Table135[[#This Row],[Time 2\n% Unique (Different) Words]]-Table135[[#This Row],[Time 1\n% Unique (Different) Words]]","v":{"v":0,"d":"0.0"}}]
[{"$nulls":4},{"$f":"Table135[[#This Row],[Time 2\n% Unique (Different) Words]]-Table135[[#This Row],[Time 1\n% Unique (Different) Words]]","v":{"v":0,"d":"0.0"}}]
[{"$nulls":4},{"$f":"Table135[[#This Row],[Time 2\n% Unique (Different) Words]]-Table135[[#This Row],[Time 1\n% Unique (Different) Words]]","v":{"v":0,"d":"0.0"}}]
[{"$nulls":4},{"$f":"Table135[[#This Row],[Time 2\n% Unique (Different) Words]]-Table135[[#This Row],[Time 1\n% Unique (Different) Words]]","v":{"v":0,"d":"0.0"}}]
[{"$nulls":4},{"$f":"Table135[[#This Row],[Time 2\n% Unique (Different) Words]]-Table135[[#This Row],[Time 1\n% Unique (Different) Words]]","v":{"v":0,"d":"0.0"}}]
[{"$nulls":4},{"$f":"Table135[[#This Row],[Time 2\n% Unique (Different) Words]]-Table135[[#This Row],[Time 1\n% Unique (Different) Words]]","v":{"v":0,"d":"0.0"}}]
[{"$nulls":4},{"$f":"Table135[[#This Row],[Time 2\n% Unique (Different) Words]]-Table135[[#This Row],[Time 1\n% Unique (Different) Words]]","v":{"v":0,"d":"0.0"}}]
[{"$nulls":4},{"$f":"Table135[[#This Row],[Time 2\n% Unique (Different) Words]]-Table135[[#This Row],[Time 1\n% Unique (Different) Words]]","v":{"v":0,"d":"0.0"}}]
[{"$nulls":4},{"$f":"Table135[[#This Row],[Time 2\n% Unique (Different) Words]]-Table135[[#This Row],[Time 1\n% Unique (Different) Words]]","v":{"v":0,"d":"0.0"}}]
[{"$nulls":4},{"$f":"Table135[[#This Row],[Time 2\n% Unique (Different) Words]]-Table135[[#This Row],[Time 1\n% Unique (Different) Words]]","v":{"v":0,"d":"0.0"}}]
[{"$nulls":4},{"$f":"Table135[[#This Row],[Time 2\n% Unique (Different) Words]]-Table135[[#This Row],[Time 1\n% Unique (Different) Words]]","v":{"v":0,"d":"0.0"}}]
[{"$nulls":4},{"$f":"Table135[[#This Row],[Time 2\n% Unique (Different) Words]]-Table135[[#This Row],[Time 1\n% Unique (Different) Words]]","v":{"v":0,"d":"0.0"}}]
[{"$nulls":4},{"$f":"Table135[[#This Row],[Time 2\n% Unique (Different) Words]]-Table135[[#This Row],[Time 1\n% Unique (Different) Words]]","v":{"v":0,"d":"0.0"}}]
[{"$nulls":4},{"$f":"Table135[[#This Row],[Time 2\n% Unique (Different) Words]]-Table135[[#This Row],[Time 1\n% Unique (Different) Words]]","v":{"v":0,"d":"0.0"}}]
[{"$nulls":4},{"$f":"Table135[[#This Row],[Time 2\n% Unique (Different) Words]]-Table135[[#This Row],[Time 1\n% Unique (Different) Words]]","v":{"v":0,"d":"0.0"}}]
[{"$nulls":4},{"$f":"Table135[[#This Row],[Time 2\n% Unique (Different) Words]]-Table135[[#This Row],[Time 1\n% Unique (Different) Words]]","v":{"v":0,"d":"0.0"}}]
[{"$nulls":4},{"$f":"Table135[[#This Row],[Time 2\n% Unique (Different) Words]]-Table135[[#This Row],[Time 1\n% Unique (Different) Words]]","v":{"v":0,"d":"0.0"}}]
[{"$nulls":4},{"$f":"Table135[[#This Row],[Time 2\n% Unique (Different) Words]]-Table135[[#This Row],[Time 1\n% Unique (Different) Words]]","v":{"v":0,"d":"0.0"}}]
[{"$nulls":4},{"$f":"Table135[[#This Row],[Time 2\n% Unique (Different) Words]]-Table135[[#This Row],[Time 1\n% Unique (Different) Words]]","v":{"v":0,"d":"0.0"}}]
[{"$nulls":4},{"$f":"Table135[[#This Row],[Time 2\n% Unique (Different) Words]]-Table135[[#This Row],[Time 1\n% Unique (Different) Words]]","v":{"v":0,"d":"0.0"}}]
[{"$nulls":4},{"$f":"Table135[[#This Row],[Time 2\n% Unique (Different) Words]]-Table135[[#This Row],[Time 1\n% Unique (Different) Words]]","v":{"v":0,"d":"0.0"}}]
[{"$nulls":4},{"$f":"Table135[[#This Row],[Time 2\n% Unique (Different) Words]]-Table135[[#This Row],[Time 1\n% Unique (Different) Words]]","v":{"v":0,"d":"0.0"}}]
[{"$nulls":4},{"$f":"Table135[[#This Row],[Time 2\n% Unique (Different) Words]]-Table135[[#This Row],[Time 1\n% Unique (Different) Words]]","v":{"v":0,"d":"0.0"}}]
[{"$nulls":4},{"$f":"Table135[[#This Row],[Time 2\n% Unique (Different) Words]]-Table135[[#This Row],[Time 1\n% Unique (Different) Words]]","v":{"v":0,"d":"0.0"}}]
[{"$nulls":4},{"$f":"Table135[[#This Row],[Time 2\n% Unique (Different) Words]]-Table135[[#This Row],[Time 1\n% Unique (Different) Words]]","v":{"v":0,"d":"0.0"}}]
[{"$nulls":4},{"$f":"Table135[[#This Row],[Time 2\n% Unique (Different) Words]]-Table135[[#This Row],[Time 1\n% Unique (Different) Words]]","v":{"v":0,"d":"0.0"}}]
[{"$nulls":4},{"$f":"Table135[[#This Row],[Time 2\n% Unique (Different) Words]]-Table135[[#This Row],[Time 1\n% Unique (Different) Words]]","v":{"v":0,"d":"0.0"}}]
[{"$nulls":4},{"$f":"Table135[[#This Row],[Time 2\n% Unique (Different) Words]]-Table135[[#This Row],[Time 1\n% Unique (Different) Words]]","v":{"v":0,"d":"0.0"}}]
[{"$nulls":4},{"$f":"Table135[[#This Row],[Time 2\n% Unique (Different) Words]]-Table135[[#This Row],[Time 1\n% Unique (Different) Words]]","v":{"v":0,"d":"0.0"}}]
[{"$nulls":4},{"$f":"Table135[[#This Row],[Time 2\n% Unique (Different) Words]]-Table135[[#This Row],[Time 1\n% Unique (Different) Words]]","v":{"v":0,"d":"0.0"}}]
[{"$nulls":4},{"$f":"Table135[[#This Row],[Time 2\n% Unique (Different) Words]]-Table135[[#This Row],[Time 1\n% Unique (Different) Words]]","v":{"v":0,"d":"0.0"}}]
[{"$nulls":4},{"$f":"Table135[[#This Row],[Time 2\n% Unique (Different) Words]]-Table135[[#This Row],[Time 1\n% Unique (Different) Words]]","v":{"v":0,"d":"0.0"}}]
[{"$nulls":4},{"$f":"Table135[[#This Row],[Time 2\n% Unique (Different) Words]]-Table135[[#This Row],[Time 1\n% Unique (Different) Words]]","v":{"v":0,"d":"0.0"}}]
[{"$nulls":4},{"$f":"Table135[[#This Row],[Time 2\n% Unique (Different) Words]]-Table135[[#This Row],[Time 1\n% Unique (Different) Words]]","v":{"v":0,"d":"0.0"}}]
[{"$nulls":4},{"$f":"Table135[[#This Row],[Time 2\n% Unique (Different) Words]]-Table135[[#This Row],[Time 1\n% Unique (Different) Words]]","v":{"v":0,"d":"0.0"}}]
[{"$nulls":4},{"$f":"Table135[[#This Row],[Time 2\n% Unique (Different) Words]]-Table135[[#This Row],[Time 1\n% Unique (Different) Words]]","v":{"v":0,"d":"0.0"}}]

{"sheet":"Number of New Words","index":3,"n_rows":40,"n_cols":10,"rows_kept":40,"merged":[[0,0,0,16],[1,0,1,16],[2,0,2,4],[2,6,2,10],[3,1,3,4],[3,6,3,10],[4,6,4,7],[4,9,4,10],[5,0,5,4],[5,6,5,7],[5,9,5,10]]}
["Number of New Unique Words Demonstrated at Time 2"]
["This information can be obtained using the following process:\n1. Enter a students' time 1 narrative transcript into https://wordcounttools.com/ and look at the 'Extra Word Count Statistics' --> 'Unique Words'. Enter this number into the 'Time 1' column.\n2. Leave that student's initial transcript in the website. Enter their time 2 transcript into the same box, so that you have the student's first and final transcripts in one box in https://wordcounttools.com/.\n    Now look at the 'Extra Word Count Statistics' --> 'Unique Words'. Enter this number into the 'Time 1 & Time 2 Combined' column."]
["INFORMATION",{"$nulls":5},"SUMMARY"]
["Assessment:",{"$nulls":5},"Class average"]
[{"$nulls":6},"Time 1\nUnique Word Count",null,{"$f":"Table136[[#Headers],[Time 1 & Time 2 Combined Unique Word count]]","v":"Time 1 & Time 2 Combined Unique Word count"},"Time 2 Number of New Unique Words Demonstrated (Difference)"]
["DATA",{"$nulls":5},{"$f":"IFERROR(C40,\"\")","v":""},null,{"$f":"IFERROR(D40,\"\")","v":""},{"$f":"IFERROR(E40,\"\")","v":""}]
["Other information (e.g. class)","Student","Time 1\nUnique Word Count","Time 1 & Time 2 Combined Unique Word count","Time 2 Number of New Unique Words Demonstrated (Difference)"]
[{"$nulls":4},{"$f":"Table136[[#This Row],[Time 1 & Time 2 Combined Unique Word count]]-Table136[[#This Row],[Time 1\nUnique Word Count]]","v":0}]
[{"$nulls":4},{"$f":"Table136[[#This Row],[Time 1 & Time 2 Combined Unique Word count]]-Table136[[#This Row],[Time 1\nUnique Word Count]]","v":0}]
[{"$nulls":4},{"$f":"Table136[[#This Row],[Time 1 & Time 2 Combined Unique Word count]]-Table136[[#This Row],[Time 1\nUnique Word Count]]","v":0}]
[{"$nulls":4},{"$f":"Table136[[#This Row],[Time 1 & Time 2 Combined Unique Word count]]-Table136[[#This Row],[Time 1\nUnique Word Count]]","v":0}]
[{"$nulls":4},{"$f":"Table136[[#This Row],[Time 1 & Time 2 Combined Unique Word count]]-Table136[[#This Row],[Time 1\nUnique Word Count]]","v":0}]
[{"$nulls":4},{"$f":"Table136[[#This Row],[Time 1 & Time 2 Combined Unique Word count]]-Table136[[#This Row],[Time 1\nUnique Word Count]]","v":0}]
[{"$nulls":4},{"$f":"Table136[[#This Row],[Time 1 & Time 2 Combined Unique Word count]]-Table136[[#This Row],[Time 1\nUnique Word Count]]","v":0}]
[{"$nulls":4},{"$f":"Table136[[#This Row],[Time 1 & Time 2 Combined Unique Word count]]-Table136[[#This Row],[Time 1\nUnique Word Count]]","v":0}]
[{"$nulls":4},{"$f":"Table136[[#This Row],[Time 1 & Time 2 Combined Unique Word count]]-Table136[[#This Row],[Time 1\nUnique Word Count]]","v":0}]
[{"$nulls":4},{"$f":"Table136[[#This Row],[Time 1 & Time 2 Combined Unique Word count]]-Table136[[#This Row],[Time 1\nUnique Word Count]]","v":0}]
[{"$nulls":4},{"$f":"Table136[[#This Row],[Time 1 & Time 2 Combined Unique Word count]]-Table136[[#This Row],[Time 1\nUnique Word Count]]","v":0}]
[{"$nulls":4},{"$f":"Table136[[#This Row],[Time 1 & Time 2 Combined Unique Word count]]-Table136[[#This Row],[Time 1\nUnique Word Count]]","v":0}]
[{"$nulls":4},{"$f":"Table136[[#This Row],[Time 1 & Time 2 Combined Unique Word count]]-Table136[[#This Row],[Time 1\nUnique Word Count]]","v":0}]
[{"$nulls":4},{"$f":"Table136[[#This Row],[Time 1 & Time 2 Combined Unique Word count]]-Table136[[#This Row],[Time 1\nUnique Word Count]]","v":0}]
[{"$nulls":4},{"$f":"Table136[[#This Row],[Time 1 & Time 2 Combined Unique Word count]]-Table136[[#This Row],[Time 1\nUnique Word Count]]","v":0}]
[{"$nulls":4},{"$f":"Table136[[#This Row],[Time 1 & Time 2 Combined Unique Word count]]-Table136[[#This Row],[Time 1\nUnique Word Count]]","v":0}]
[{"$nulls":4},{"$f":"Table136[[#This Row],[Time 1 & Time 2 Combined Unique Word count]]-Table136[[#This Row],[Time 1\nUnique Word Count]]","v":0}]
[{"$nulls":4},{"$f":"Table136[[#This Row],[Time 1 & Time 2 Combined Unique Word count]]-Table136[[#This Row],[Time 1\nUnique Word Count]]","v":0}]
[{"$nulls":4},{"$f":"Table136[[#This Row],[Time 1 & Time 2 Combined Unique Word count]]-Table136[[#This Row],[Time 1\nUnique Word Count]]","v":0}]
[{"$nulls":4},{"$f":"Table136[[#This Row],[Time 1 & Time 2 Combined Unique Word count]]-Table136[[#This Row],[Time 1\nUnique Word Count]]","v":0}]
[{"$nulls":4},{"$f":"Table136[[#This Row],[Time 1 & Time 2 Combined Unique Word count]]-Table136[[#This Row],[Time 1\nUnique Word Count]]","v":0}]
[{"$nulls":4},{"$f":"Table136[[#This Row],[Time 1 & Time 2 Combined Unique Word count]]-Table136[[#This Row],[Time 1\nUnique Word Count]]","v":0}]
[{"$nulls":4},{"$f":"Table136[[#This Row],[Time 1 & Time 2 Combined Unique Word count]]-Table136[[#This Row],[Time 1\nUnique Word Count]]","v":0}]
[{"$nulls":4},{"$f":"Table136[[#This Row],[Time 1 & Time 2 Combined Unique Word count]]-Table136[[#This Row],[Time 1\nUnique Word Count]]","v":0}]
[{"$nulls":4},{"$f":"Table136[[#This Row],[Time 1 & Time 2 Combined Unique Word count]]-Table136[[#This Row],[Time 1\nUnique Word Count]]","v":0}]
[{"$nulls":4},{"$f":"Table136[[#This Row],[Time 1 & Time 2 Combined Unique Word count]]-Table136[[#This Row],[Time 1\nUnique Word Count]]","v":0}]
[{"$nulls":4},{"$f":"Table136[[#This Row],[Time 1 & Time 2 Combined Unique Word count]]-Table136[[#This Row],[Time 1\nUnique Word Count]]","v":0}]
[{"$nulls":4},{"$f":"Table136[[#This Row],[Time 1 & Time 2 Combined Unique Word count]]-Table136[[#This Row],[Time 1\nUnique Word Count]]","v":0}]
[{"$nulls":4},{"$f":"Table136[[#This Row],[Time 1 & Time 2 Combined Unique Word count]]-Table136[[#This Row],[Time 1\nUnique Word Count]]","v":0}]
[{"$nulls":4},{"$f":"Table136[[#This Row],[Time 1 & Time 2 Combined Unique Word count]]-Table136[[#This Row],[Time 1\nUnique Word Count]]","v":0}]
[{"$nulls":4},{"$f":"Table136[[#This Row],[Time 1 & Time 2 Combined Unique Word count]]-Table136[[#This Row],[Time 1\nUnique Word Count]]","v":0}]
[]
[null,"Class average",{"$f":"IFERROR(AVERAGE($C$8:$C$38),\"\")","v":""},{"$f":"IFERROR(AVERAGE($D$8:$D$38),\"\")","v":""},{"$f":"IFERROR($D$40-$C$40,\"\")","v":""}]

{"sheet":"% of New Words","index":4,"n_rows":40,"n_cols":10,"rows_kept":40,"merged":[[0,0,0,16],[1,0,1,16],[2,0,2,4],[2,6,2,10],[3,1,3,4],[3,6,3,10],[4,6,4,7],[4,9,4,10],[5,0,5,4],[5,6,5,7],[5,9,5,10]]}
["% of New Unique Words Demonstrated at Time 2"]
["This information can be obtained using the following process:\n1. Enter a students' time 1 narrative transcript into https://wordcounttools.com/ and look at the 'Extra Word Count Statistics' --> 'Unique Words'. Enter this number into the 'Time 1' column.\n2. Leave that student's initial transcript in the website. Enter their time 2 transcript into the same box, so that you have the student's first and final transcripts in one box in https://wordcounttools.com/.\n    Now look at the 'Extra Word Count Statistics' --> 'Unique Words'. Enter this number into the 'Time 1 & Time 2 Combined' column."]
["INFORMATION",{"$nulls":5},"SUMMARY"]
["Assessment:",{"$nulls":5},"Class average"]
[{"$nulls":6},"Time 1\nUnique Word %",null,{"$f":"Table1363[[#Headers],[Time 1 & Time 2 Combined Unique Word %]]","v":"Time 1 & Time 2 Combined Unique Word %"},"Time 2  % Difference in New Unique Words Demonstrated"]
["DATA",{"$nulls":5},{"$f":"IFERROR(C40,\"\")","v":""},null,{"$f":"IFERROR(D40,\"\")","v":""},{"$f":"IFERROR(E40,\"\")","v":""}]
["Other information (e.g. class)","Student","Time 1\nUnique Word %","Time 1 & Time 2 Combined Unique Word %","Time 2 % Difference in New Unique Words Demonstrated"]
[{"$nulls":4},{"$f":"Table1363[[#This Row],[Time 1 & Time 2 Combined Unique Word %]]-Table1363[[#This Row],[Time 1\nUnique Word %]]","v":{"v":0,"d":"0.0%"}}]
[{"$nulls":4},{"$f":"Table1363[[#This Row],[Time 1 & Time 2 Combined Unique Word %]]-Table1363[[#This Row],[Time 1\nUnique Word %]]","v":{"v":0,"d":"0.0%"}}]
[{"$nulls":4},{"$f":"Table1363[[#This Row],[Time 1 & Time 2 Combined Unique Word %]]-Table1363[[#This Row],[Time 1\nUnique Word %]]","v":{"v":0,"d":"0.0%"}}]
[{"$nulls":4},{"$f":"Table1363[[#This Row],[Time 1 & Time 2 Combined Unique Word %]]-Table1363[[#This Row],[Time 1\nUnique Word %]]","v":{"v":0,"d":"0.0%"}}]
[{"$nulls":4},{"$f":"Table1363[[#This Row],[Time 1 & Time 2 Combined Unique Word %]]-Table1363[[#This Row],[Time 1\nUnique Word %]]","v":{"v":0,"d":"0.0%"}}]
[{"$nulls":4},{"$f":"Table1363[[#This Row],[Time 1 & Time 2 Combined Unique Word %]]-Table1363[[#This Row],[Time 1\nUnique Word %]]","v":{"v":0,"d":"0.0%"}}]
[{"$nulls":4},{"$f":"Table1363[[#This Row],[Time 1 & Time 2 Combined Unique Word %]]-Table1363[[#This Row],[Time 1\nUnique Word %]]","v":{"v":0,"d":"0.0%"}}]
[{"$nulls":4},{"$f":"Table1363[[#This Row],[Time 1 & Time 2 Combined Unique Word %]]-Table1363[[#This Row],[Time 1\nUnique Word %]]","v":{"v":0,"d":"0.0%"}}]
[{"$nulls":4},{"$f":"Table1363[[#This Row],[Time 1 & Time 2 Combined Unique Word %]]-Table1363[[#This Row],[Time 1\nUnique Word %]]","v":{"v":0,"d":"0.0%"}}]
[{"$nulls":4},{"$f":"Table1363[[#This Row],[Time 1 & Time 2 Combined Unique Word %]]-Table1363[[#This Row],[Time 1\nUnique Word %]]","v":{"v":0,"d":"0.0%"}}]
[{"$nulls":4},{"$f":"Table1363[[#This Row],[Time 1 & Time 2 Combined Unique Word %]]-Table1363[[#This Row],[Time 1\nUnique Word %]]","v":{"v":0,"d":"0.0%"}}]
[{"$nulls":4},{"$f":"Table1363[[#This Row],[Time 1 & Time 2 Combined Unique Word %]]-Table1363[[#This Row],[Time 1\nUnique Word %]]","v":{"v":0,"d":"0.0%"}}]
[{"$nulls":4},{"$f":"Table1363[[#This Row],[Time 1 & Time 2 Combined Unique Word %]]-Table1363[[#This Row],[Time 1\nUnique Word %]]","v":{"v":0,"d":"0.0%"}}]
[{"$nulls":4},{"$f":"Table1363[[#This Row],[Time 1 & Time 2 Combined Unique Word %]]-Table1363[[#This Row],[Time 1\nUnique Word %]]","v":{"v":0,"d":"0.0%"}}]
[{"$nulls":4},{"$f":"Table1363[[#This Row],[Time 1 & Time 2 Combined Unique Word %]]-Table1363[[#This Row],[Time 1\nUnique Word %]]","v":{"v":0,"d":"0.0%"}}]
[{"$nulls":4},{"$f":"Table1363[[#This Row],[Time 1 & Time 2 Combined Unique Word %]]-Table1363[[#This Row],[Time 1\nUnique Word %]]","v":{"v":0,"d":"0.0%"}}]
[{"$nulls":4},{"$f":"Table1363[[#This Row],[Time 1 & Time 2 Combined Unique Word %]]-Table1363[[#This Row],[Time 1\nUnique Word %]]","v":{"v":0,"d":"0.0%"}}]
[{"$nulls":4},{"$f":"Table1363[[#This Row],[Time 1 & Time 2 Combined Unique Word %]]-Table1363[[#This Row],[Time 1\nUnique Word %]]","v":{"v":0,"d":"0.0%"}}]
[{"$nulls":4},{"$f":"Table1363[[#This Row],[Time 1 & Time 2 Combined Unique Word %]]-Table1363[[#This Row],[Time 1\nUnique Word %]]","v":{"v":0,"d":"0.0%"}}]
[{"$nulls":4},{"$f":"Table1363[[#This Row],[Time 1 & Time 2 Combined Unique Word %]]-Table1363[[#This Row],[Time 1\nUnique Word %]]","v":{"v":0,"d":"0.0%"}}]
[{"$nulls":4},{"$f":"Table1363[[#This Row],[Time 1 & Time 2 Combined Unique Word %]]-Table1363[[#This Row],[Time 1\nUnique Word %]]","v":{"v":0,"d":"0.0%"}}]
[{"$nulls":4},{"$f":"Table1363[[#This Row],[Time 1 & Time 2 Combined Unique Word %]]-Table1363[[#This Row],[Time 1\nUnique Word %]]","v":{"v":0,"d":"0.0%"}}]
[{"$nulls":4},{"$f":"Table1363[[#This Row],[Time 1 & Time 2 Combined Unique Word %]]-Table1363[[#This Row],[Time 1\nUnique Word %]]","v":{"v":0,"d":"0.0%"}}]
[{"$nulls":4},{"$f":"Table1363[[#This Row],[Time 1 & Time 2 Combined Unique Word %]]-Table1363[[#This Row],[Time 1\nUnique Word %]]","v":{"v":0,"d":"0.0%"}}]
[{"$nulls":4},{"$f":"Table1363[[#This Row],[Time 1 & Time 2 Combined Unique Word %]]-Table1363[[#This Row],[Time 1\nUnique Word %]]","v":{"v":0,"d":"0.0%"}}]
[{"$nulls":4},{"$f":"Table1363[[#This Row],[Time 1 & Time 2 Combined Unique Word %]]-Table1363[[#This Row],[Time 1\nUnique Word %]]","v":{"v":0,"d":"0.0%"}}]
[{"$nulls":4},{"$f":"Table1363[[#This Row],[Time 1 & Time 2 Combined Unique Word %]]-Table1363[[#This Row],[Time 1\nUnique Word %]]","v":{"v":0,"d":"0.0%"}}]
[{"$nulls":4},{"$f":"Table1363[[#This Row],[Time 1 & Time 2 Combined Unique Word %]]-Table1363[[#This Row],[Time 1\nUnique Word %]]","v":{"v":0,"d":"0.0%"}}]
[{"$nulls":4},{"$f":"Table1363[[#This Row],[Time 1 & Time 2 Combined Unique Word %]]-Table1363[[#This Row],[Time 1\nUnique Word %]]","v":{"v":0,"d":"0.0%"}}]
[{"$nulls":4},{"$f":"Table1363[[#This Row],[Time 1 & Time 2 Combined Unique Word %]]-Table1363[[#This Row],[Time 1\nUnique Word %]]","v":{"v":0,"d":"0.0%"}}]
[{"$nulls":4},{"$f":"Table1363[[#This Row],[Time 1 & Time 2 Combined Unique Word %]]-Table1363[[#This Row],[Time 1\nUnique Word %]]","v":{"v":0,"d":"0.0%"}}]
[]
[null,"Class average",{"$f":"IFERROR(AVERAGE($C$8:$C$38),\"\")","v":""},{"$f":"IFERROR(AVERAGE($D$8:$D$38),\"\")","v":""},{"$f":"IFERROR($D$40-$C$40,\"\")","v":""}]

{"sheet":"Total Tiered Vocab Count","index":5,"n_rows":10,"n_cols":5,"rows_kept":10,"merged":[[0,0,0,13],[1,0,2,12],[4,1,4,4]]}
["Tiered Vocab Summary"]
["Note, the NEMLDC Tiered Vocabulary Spreadsheet can be used to calculate these numbers. \nFor tiered vocabulary count comparisons to be most accurate, the samples being compared need to be the same length (same number of words)."]
[]
[]
[null,"Tiered Vocabulary Class Average Summary"]
[null,"Group Averages","Time 1","Time 2","Change"]
[null,"Number of tier 1 words",null,null,{"$f":"D7-C7","v":{"v":0,"d":"0.00"}}]
[null,"Number of tier 2 words",null,null,{"$f":"D8-C8","v":{"v":0,"d":"0.00"}}]
[null,"Number of tier 3 words",null,null,{"$f":"D9-C9","v":{"v":0,"d":"0.00"}}]
[null,"Total",{"$f":"SUM(C7:C9)","v":{"v":0,"d":"0.00"}},{"$f":"SUM(D7:D9)","v":{"v":0,"d":"0.00"}},{"$f":"SUM(E7:E9)","v":{"v":0,"d":"0.00"}}]

{"sheet":"% Tiered Vocab Count ","index":6,"n_rows":31,"n_cols":23,"rows_kept":31,"merged":[[0,0,0,15],[1,0,1,15],[2,0,2,7],[2,9,2,15],[4,0,4,1],[4,2,4,7],[4,9,4,10],[4,11,4,15],[26,10,26,13]]}
["Tiered Vocab Summary"]
["Enter total tiered vocabulary counts into the 'Total Tiered Vocab Count' tab. That data will then be displayed here as percentages.\nNote: For tiered vocabulary count comparisons to be most accurate, the samples being compared need to be the same length (same number of words)."]
[{"$f":"'Total Tiered Vocab Count'!C6","v":"Time 1"},{"$nulls":8},{"$f":"'Total Tiered Vocab Count'!D6","v":"Time 2"},{"$nulls":7},"Tier 1 Words","Tier 2 Words","Tier 3 Words"]
["Class:",null,null,"Year group:",null,null,"Date:",null,null,"Class:",null,null,"Year group:",null,"Date:"]
["Assessment Context:",null,"",{"$nulls":6},"Assessment Context:"]
{"$rows_empty":21}
[{"$nulls":10},"Tiered Vocabulary Class Average Summary"]
[{"$nulls":10},"Class Averages",{"$f":"'Total Tiered Vocab Count'!C6","v":"Time 1"},{"$f":"'Total Tiered Vocab Count'!D6","v":"Time 2"},"Change",{"$nulls":7},{"$f":"M28","v":"Time 2"},{"$f":"L28","v":"Time 1"}]
[{"$nulls":10},"% tier 1 words",{"$f":"IFERROR('Total Tiered Vocab Count'!$C7/'Total Tiered Vocab Count'!$C$10,\"\")","v":""},{"$f":"IFERROR('Total Tiered Vocab Count'!$D7/'Total Tiered Vocab Count'!$D$10,\"\")","v":""},{"$f":"IFERROR(M29-L29,\"\")","v":""},{"$nulls":6},{"$f":"K29","v":"% tier 1 words"},{"$f":"M29","v":""},{"$f":"L29","v":""}]
[{"$nulls":10},"% tier 2 words",{"$f":"IFERROR('Total Tiered Vocab Count'!$C8/'Total Tiered Vocab Count'!$C$10,\"\")","v":""},{"$f":"IFERROR('Total Tiered Vocab Count'!$D8/'Total Tiered Vocab Count'!$D$10,\"\")","v":""},{"$f":"IFERROR(M30-L30,\"\")","v":""},{"$nulls":6},{"$f":"K30","v":"% tier 2 words"},{"$f":"M30","v":""},{"$f":"L30","v":""}]
[{"$nulls":10},"% tier 3 words",{"$f":"IFERROR('Total Tiered Vocab Count'!$C9/'Total Tiered Vocab Count'!$C$10,\"\")","v":""},{"$f":"IFERROR('Total Tiered Vocab Count'!$D9/'Total Tiered Vocab Count'!$D$10,\"\")","v":""},{"$f":"IFERROR(M31-L31,\"\")","v":""},{"$nulls":6},{"$f":"K31","v":"% tier 3 words"},{"$f":"M31","v":""},{"$f":"L31","v":""}]